Workbook

Sheet Tech (hidden)
A1: LT
A2: EN

Sheet Content
B2: LT | C2: ◄ | D2: Switch to English | F2: ◄ | G2: Rodyti lietuviškai
C4: FISKALINĖS DRAUSMĖS TAISYKLIŲ LAIKYMOSI SKAIČIUOKLĖ | F4: SPREADSHEET OF THE FULFILMENT OF FISCAL DISCIPLINE RULES
C6: 2019-11-12 | G6: 2019-11-12
C8: APRAŠYMAS | F8: DESCRIPTION
D10: Fiskalinės sutarties įgyvendinimo konstituciniame įstatyme Nr. XII-1289 (toliau − KĮ) nustatytų fiskalinės drausmės taisyklių skaičiuoklė skirta skaidriai parodyti fiskalinės drausmės taisykles, pagal kurias priimami sprendimai. 1 dalis pateikia skaičiavimams reikalingų duomenų įvestis ir nurodo šių duomenų šaltinius. 2 dalyje nagrinėjamos trys taisyklių grupės: perteklinio valdžios sektoriaus (toliau − VS) taisyklė; VS išlaidų augimą ribojimo taisyklė ir VS priskiriamų biudžetų taisyklės. | G10: Constitutional Law on the Implementation of the Fiscal Treaty Nr. XII-1289 (hereinafter − CL) defines fiscal discipline rules. The aim of this spreadsheet is to show the fiscal discipline rules, which are used for making decisions in a transparent way. Part 1 provides required input data with their appropriate sources. In part 2 three groups of the fiscal rules are validated: general government (hereinafter − GG) surplus rule; GG sector expenditure growth limiting rule and rules for the budgets attributable to GG.
C12: SUVESTINĖ | F12: SUMMARY
D14: 1 lentelė. Fiskalinės drausmės taisyklių laikymosi suvestinė | G14: Table 1. Summary of the fulfilment of the fiscal discipline rules
C16: 1. DUOMENYS | F16: 1 . DATA
D18: 2 lentelė. Makroekonominiai ir ciklo rodikliai | G18: Table 2. Macroeconomic and cyclical indicators
D19: 3 lentelė. VS fiskaliniai rodikliai | G19: Table 3. GG fiscal indicators
D20: 4 lentelė. Vietos valdžios biudžetai | G20: Table 4. Budget attributable to local government
C22: 2. FISKALINĖS TAISYKLĖS | F22: 2. FISCAL RULES
D24: 5 lentelė. Perteklinio VS taisyklė | G24: Table 5. Surplus GG rule
D25: 6 lentelė. VS išlaidų augimo ribojimo taisyklė | G25: Table 6. GG expenditure growth limiting rule
D26: 7 lentelė. VS priskiriamų biudžetų taisyklė | G26: Table 7. Rules for the budgets attributable to GG sector
C28: NUORODOS | F28: REFERENCES
C30: KĮ | D30: Lietuvos Respublikos fiskalinės sutarties įgyvendinimo konstitucinis įstatymas | F30: CL | G30: Republic of Lithuania Constitutional Law on the Implementation of the Fiscal Treaty
C31: FDĮ | D31: Lietuvos Respublikos fiskalinės drausmės įstatymas | F31: FDL | G31: Republic of Lithuania Fiscal Discipline Law

Sheet 1. Summary
B1: ↖ atgal į turinį | E1: ↖ back to content
A2: =Kalba -> LT
B3: 1 lentelė. Fiskalinės drausmės taisyklių laikymosi suvestinė 2020 m. | E3: Table 1. Summary of the fulfilment of the fiscal discipline rules in year 2019
B4: Taisyklė | E4: Rule
B5: Institucija, kurios projekcijų pagrindu atliekama analizė | C5: FM | D5: IFI | E5: Institution, projections of which are used for the analysis | F5: MoF | G5: IFI
B6: Perteklinio VS taisyklė | E6: Surplus GG sector rule
B7: Ar patenkinta bent viena perteklinio VS taisyklės sąlygų? | C7: ='5. SurplusGG'!E14 -> Taip | D7: ='5. SurplusGG'!F14 -> Ne | E7: Is at least one condition of the surplus GG rule satisfied? | F7: ='5. SurplusGG'!J14 -> Yes | G7: ='5. SurplusGG'!K14 -> No
C8: ='5. SurplusGG'!E15 -> Tenkinama S2 sąlyga | D8: ='5. SurplusGG'!F15 -> Netenkinama nei viena iš sąlygų | F8: ='5. SurplusGG'!J15 -> Condition C2 is valid | G8: ='5. SurplusGG'!K15 -> None of the conditions is valid
B9: Ar t metai yra išskirtinių aplinkybių metai? | C9: Ne | E9: Is year t a year of exceptional circumstances? | F9: =IF(C9="NE","No","Yes") -> No
B10: VS išlaidų augimo ribojimo taisyklė | E10: GG expenditure growth limiting rule
B11: Ar susidaro bent viena aplinkybė, leidžianti netaikyti VS išlaidų augimo ribojimo taisyklės? | C11: ='6. GGexpenditure'!F19 -> Taip | D11: ='6. GGexpenditure'!G19 -> Taip | E11: Is at least one escape clause, which allows switching off GG expenditure growth limiting rule, valid? | F11: ='6. GGexpenditure'!L19 -> Yes | G11: ='6. GGexpenditure'!M19 -> Yes
C12: ='6. GGexpenditure'!F20 -> Susidaro A3 aplinkybė | D12: ='6. GGexpenditure'!G20 -> Susidaro A3 aplinkybė | F12: ='6. GGexpenditure'!L20 -> Escape clause E3 emerges | G12: ='6. GGexpenditure'!M20 -> Escape clause E3 emerges
B13: Ar taikoma VS išlaidų augimą ribojimo taisyklė? | C13: =IF(C11="taip","Netaikoma,","Taikoma") -> Netaikoma, | D13: =IF(D11="taip","Netaikoma,","Taikoma") -> Netaikoma, | E13: Is GG expenditure growth limiting rule applied? | F13: =IF(F11="yes","Not applied,","Applied") -> Not applied, | G13: =IF(G11="yes","Not applied,","Applied") -> Not applied,
C14: ='6. GGexpenditure'!F26 -> nes susidarė viena iš KĮ numatytų netaikymo aplinkybių | D14: ='6. GGexpenditure'!G26 -> nes susidarė viena iš KĮ numatytų netaikymo aplinkybių | F14: ='6. GGexpenditure'!L26 -> since one of CL escape clauses emerged | G14: ='6. GGexpenditure'!M26 -> since one of CL escape clauses emerged
B15: Ar galioja VS išlaidų augimą ribojimo taisyklė? | C15: =IF(C11="taip","Netikrinama",'6. GGexpenditure'!F25) -> Netikrinama | D15: =IF(D11="taip","Netikrinama",'6. GGexpenditure'!G25) -> Netikrinama | E15: Is GG expenditure growth limiting rule valid? | F15: =IF(F11="yes","Not verified",'6. GGexpenditure'!L25) -> Not verified | G15: =IF(G11="yes","Not verified",'6. GGexpenditure'!M25) -> Not verified
B16: VS priskiriamų biudžetų taisyklės | E16: Rules for the budgets attributable to GG sector
B17: ='7. GGbudgets'!C8 -> Taisyklė planuojamiems vietos valdžios sektoriaus (j) asignavimams, kurie viršija 0,3 proc. BVP | C17: ='7. GGbudgets'!E8 -> Netikrinama | D17: ='7. GGbudgets'!F8 -> Netikrinama | E17: ='7. GGbudgets'!H8 -> Rule for planned local governments (j) appropriations of which does exceed 0.3 % of GDP | F17: ='7. GGbudgets'!J8 -> Not verified | G17: ='7. GGbudgets'!K8 -> Not verified
B18: ='7. GGbudgets'!C18 -> Taisyklė planuojamam VSDF struktūriniam biudžetui | C18: ='7. GGbudgets'!E18 -> Galioja | D18: ='7. GGbudgets'!F18 -> Galioja | E18: ='7. GGbudgets'!H18 -> Rule for SSIF structural budget | F18: ='7. GGbudgets'!J18 -> Valid | G18: ='7. GGbudgets'!K18 -> Valid
B19: ='7. GGbudgets'!C12 -> Taisyklė planuojamam PSDF struktūriniam biudžetui | C19: ='7. GGbudgets'!E12 -> Galioja | D19: ='7. GGbudgets'!F12 -> Galioja | E19: ='7. GGbudgets'!H12 -> Rule for NHIF structural budget | F19: ='7. GGbudgets'!J12 -> Valid | G19: ='7. GGbudgets'!K12 -> Valid
B20: ='7. GGbudgets'!C22 -> Taisyklė planuojamiems vietos valdžios sektoriaus (j) asignavimams, kurie neviršija 0,3 proc. BVP | C20: ='7. GGbudgets'!E22 -> Netikrinama | D20: ='7. GGbudgets'!F22 -> Netikrinama | E20: ='7. GGbudgets'!H22 -> Rule for planned local governments (j) appropriations of which does not exceed 0.3 % of GDP | F20: ='7. GGbudgets'!J22 -> Not verified | G20: ='7. GGbudgets'!K22 -> Not verified
B22: Šaltiniai: | E22: Sources:
B23: Finansų ministerija | C23: FM | E23: Ministry of Finance | F23: MoF
B24: Fiskalinė institucija | C24: IFI | E24: Independent Fiscal Institution | F24: IFI

Sheet 2. Macro
B1: ↖ atgal į turinį | D1: ↖ back to content
A2: =Kalba -> LT
B3: 2 lentelė. Makroekonominiai ir ciklo rodikliai | D3: Table 2. Macroeconomic and cyclical indicators
B4: Rodiklis | C4: Žymėjimas | Formulė | D4: Indicator | E4: Notation | Formula | F4: =IF(A2="LT","Duomenys atnaujinti","Data updated on") -> Duomenys atnaujinti | G4: =IF(A2="LT","Faktas","Actuals") -> Faktas | N4: =CONCATENATE("2019-09-11",IF(A2="LT"," Projekcijos"," Projections")) -> 2019-09-11 Projekcijos
G5: 2012 | H5: =G5+1 -> 2013 | I5: 2014 | J5: 2015 | K5: 2016 | L5: 2017 | M5: 2018 | N5: =CONCATENATE(M5+1,"P") -> 2019P | O5: =CONCATENATE(M5+2,"P") -> 2020P | P5: =CONCATENATE(M5+3,"P") -> 2021P | Q5: =CONCATENATE(M5+4,"P") -> 2022P
B6: Laikas | C6: T | D6: Time | E6: T | G6: t–8 | H6: t−7 | I6: t−6 | J6: t−5 | K6: t−4 | L6: t−3 | M6: t−2 | N6: t−1 | O6: t | P6: t+1 | Q6: t+2
B7: Nominalus BVP, mln. EUR | C7: YN(T) | D7: Nominal GDP, million EUR | E7: YN(T) | F7: 2019-10-01 | G7: 33331.7 | H7: 34985 | I7: 36544.8 | J7: 37321.8 | K7: 38893.4 | L7: 42269.4 | M7: 45264.4 | N7: =M7*(1+N10%) -> 48494.41885 | O7: =N7*(1+O10%) -> 51032.08878 | P7: =O7*(1+P10%) -> 53305.45259 | Q7: =P7*(1+Q10%) -> 55644.11062
F8: 2019-08-30 | G8: 33348.47624 | H8: 34959.64612 | I8: 36568.28063 | J8: 37433.90632 | K8: 38849.43223 | L8: 42190.83084 | M8: 45113.83415 | N8: 48333.10878 | O8: 50862.3375 | P8: 53128.13927 | Q8: 55459.01808
B9: Nominalus BVP, metinis augimas proc. | C9: ΔYN(T)=(YN(T)/YN(T–1)–1)∙100 | D9: Nominal GDP growth, annual % change | E9: ΔYN(T)=(YN(T)/YN(T–1)–1)∙100 | F9: =$F$7 -> 2019-10-01 | H9: =(H7/G7-1)*100 -> 4.960143047 | I9: 4.458482207 | J9: 2.126157483 | K9: 4.210943738 | L9: 8.680135961 | M9: 7.085503934 | N9: =(N7/M7-1)*100 -> 7.135892337 | O9: 5.232911309 | P9: 4.454773188 | Q9: 4.387277324
F10: =$F$8 -> 2019-08-30 | H10: 4.831314828 | I10: 4.601403891 | J10: 2.367148991 | K10: 3.781400477 | L10: 8.600894313 | M10: 6.928053451 | N10: 7.135892337 | O10: 5.232911309 | P10: 4.454773188 | Q10: 4.387277324
B11: Realus BVP, mln. EUR | C11: YR(T) | D11: Real GDP, million EUR | E11: YR(T) | F11: =$F$7 -> 2019-10-01 | G11: 30776 | H11: 31871.1 | I11: 32989.2 | J11: 33659.9 | K11: 34520.2 | L11: 35986.5 | M11: 37298.1 | N11: =M11*(1+N14%) -> 38668.53832 | O11: =N11*(1+O14%) -> 39607.86037 | P11: =O11*(1+P14%) -> 40535.91053 | Q11: =P11*(1+Q14%) -> 41487.31291
F12: =$F$8 -> 2019-08-30 | G12: 30858.83223 | H12: 31938.45339 | I12: 33068.30359 | J12: 33736.49096 | K12: 34530.37176 | L12: 35959.91141 | M12: 37216.2388 | N12: 38583.6693 | O12: 39520.92975 | P12: 40446.94304 | Q12: 41396.2573
B13: Realus BVP, metinis augimas proc. | C13: ΔYR(T)=(YR(T)/YR(T–1)–1)∙100 | D13: Real GDP growth, annual % change | E13: ΔYR(T)=(YR(T)/YR(T–1)–1)∙100 | F13: =$F$7 -> 2019-10-01 | H13: =(H11/G11-1)*100 -> 3.558292176 | I13: 3.508193944 | J13: 2.033089617 | K13: 2.555860237 | L13: 4.247657893 | M13: =(M11/L11-1)*100 -> 3.644700096 | N13: 3.674284525 | O13: 2.429163595 | P13: 2.343095916 | Q13: 2.347060583
F14: =$F$8 -> 2019-08-30 | H14: 3.498580738 | I14: 3.537585817 | J14: 2.020627905 | K14: 2.353181309 | L14: 4.139948642 | M14: 3.493688774 | N14: 3.674284525 | O14: 2.429163595 | P14: 2.343095916 | Q14: 2.347060583
B15: Potencialus BVP, mln. EUR | C15: Y*(T) | D15: Potential GDP, million EUR | E15: Y*(T) | F15: 2019-10-28 | G15: 31661.70087 | H15: 32251.26241 | I15: 32910.33698 | J15: 33639.29876 | K15: 34422.64865 | L15: 35295.29916 | M15: 36292.99947 | N15: 37379.93722 | O15: 38556.31096 | P15: 39797.68282 | Q15: 41088.30048
F16: 2019-09-18 | G16: 31720.82946 | H16: 32315.67726 | I16: 32964.58099 | J16: 33616.38881 | K16: 34196.31745 | L16: 34947.73786 | M16: 35931.24892 | N16: 37260.93183 | O16: 38670.11549 | P16: 39945.30617 | Q16: 41121.11812
B17: Potencialus BVP, metinis augimas proc. | C17: ΔY*(T)=(Y*(T)/Y*(T–1)–1)∙100 | D17: Potential GDP growth, annual % change | E17: ΔY*(T)=(Y*(T)/Y*(T–1)–1)∙100 | F17: =$F$15 -> 2019-10-28 | H17: =(H15/G15-1)*100 -> 1.862065281 | I17: =(I15/H15-1)*100 -> 2.043562095 | J17: 2.214993351 | K17: 2.328674847 | L17: 2.535105653 | M17: 2.826722912 | N17: =(N15/M15-1)*100 -> 2.994896454 | O17: 3.147072535 | P17: 3.219633383 | Q17: 3.242946747
F18: =$F$16 -> 2019-09-18 | H18: =(H16/G16-1)*100 -> 1.875259311 | I18: =(I16/H16-1)*100 -> 2.008015238 | J18: 1.977297474 | K18: 1.725136616 | L18: 2.197372316 | M18: 2.814233829 | N18: 3.700630935 | O18: 3.781933491 | P18: 3.297612807 | Q18: 2.943554734
B19: Atotrūkis nuo potencialo, proc. pot. BVP | C19: AP(T)=(YR(T)/Y*(T)–1)∙100 | D19: Output gap (OG), % pot. GDP | E19: OG(T)=(YR(T)/Y*(T–1)–1)∙100 | F19: =$F$15 -> 2019-10-28 | G19: =(G$11/G15-1)*100 -> -2.797388785 | H19: =(H11/H15-1)*100 -> -1.178752024 | I19: 0.2396299315 | J19: 0.06124159214 | K19: 0.2833929316 | L19: 1.958336826 | M19: 2.769406079 | N19: 3.447306741 | O19: =(O11/O15-1)*100 -> 2.727308156 | P19: 1.854951497 | Q19: 0.9711096014
F20: =$F$16 -> 2019-09-18 | G20: =(G$12/G16-1)*100 -> -2.717448569 | H20: =(H$12/H16-1)*100 -> -1.1673092 | I20: =(I$12/I16-1)*100 -> 0.3146486233 | J20: 0.3572725903 | K20: 0.9768721759 | L20: 2.896249131 | M20: =(M$12/M16-1)*100 -> 3.57624608 | N20: =(N$12/N16-1)*100 -> 3.549931272 | O20: =(O$12/O16-1)*100 -> 2.200185464 | P20: =(P$12/P16-1)*100 -> 1.2558093 | Q20: 0.6690945882
B21: Ciklinė VS biudžeto dedamoji, proc. pot. BVP | C21: CB(T) = ε∙AP(T) | D21: Cyclical GG budgetary component, % pot. GDP | E21: CB(T) = ε∙OG(T) | F21: =$F$15 -> 2019-10-28 | G21: =G19*G38 -> -1.116158125 | H21: =H19*H38 -> -0.4703220575 | I21: 0.09561234266 | J21: 0.02443539527 | K21: 0.1130737797 | L21: 0.7813763938 | M21: 1.104993025 | N21: =N19*N38 -> 1.37547539 | O21: =O19*O38 -> 1.088195954 | P21: 0.7401256474 | Q21: 0.387472731
F22: =$F$16 -> 2019-09-18 | G22: =G20*G38 -> -1.084261979 | H22: -0.4657563706 | I22: 0.1255448007 | J22: 0.1425517635 | K22: =K20*K38 -> 0.3897719982 | L22: 1.155603403 | M22: 1.426922186 | N22: =N20*N38 -> 1.416422578 | O22: =O20*O38 -> 0.8778740001 | P22: =P20*P38 -> 0.5010679108 | Q22: 0.2669687407
B23: Ciklinė VSDF biudžeto dedamoji, proc. pot. BVP | C23: CBVSDF(T) = εVSDF∙AP(T) | D23: Cyclical SSIF budgetary component, % pot. GDP | E23: CBSSIF(T) = εSSIF∙OG(T) | F23: =$F$15 -> 2019-10-28 | G23: =G19*G39 -> -0.2813203185 | H23: =H19*H39 -> -0.118541583 | I23: =I19*I39 -> 0.02409846247 | J23: 0.006158780753 | K23: 0.02849950289 | L23: 0.1969407838 | M23: 0.2785062285 | N23: =N19*N39 -> 0.3466795305 | O23: =O19*O39 -> 0.2742726372 | P23: 0.1865438043 | Q23: 0.09765995483
F24: =+F26 -> 2019-10-28 | G24: =G20*G39 -> -0.2732811046 | H24: =H20*H39 -> -0.1173908316 | I24: =I20*I39 -> 0.03164274177 | J24: 0.03592923495 | K24: 0.09823947003 | L24: 0.2912622416 | M24: 0.3596463573 | N24: =N20*N39 -> 0.357 | O24: =O20*O39 -> 0.2212623711 | P24: =P20*P39 -> 0.1262908732 | Q24: 0.0672877162
B25: Ciklinė PSDF biudžeto dedamoji, proc. pot. BVP | C25: CBPSDF(T) = εPSDF∙AP(T) | D25: Cyclical NHIF budgetary component, % pot. GDP | E25: CBNHIF(T) = εNHIF∙OG(T) | F25: =$F$15 -> 2019-10-28 | N25: =N19*N40 -> 0.1563456706 | O25: =O19*O40 -> 0.1236915815 | P25: =P19*P40 -> 0.08412759802 | Q25: 0.04404272473
F26: 2019-10-28 | N26: =N20*N40 -> 0.161 | O26: =O20*O40 -> 0.0997849909 | P26: =P20*P40 -> 0.05695470752 | Q26: 0.03034544064
B27: BVP defliatorius, 2010 = 100 | C27: PY(T) = YN(T)/YR(T) | D27: GDP deflator, 2010 = 100 | E27: PY(T) = YN(T)/YR(T) | F27: =$F$7 -> 2019-10-01 | G27: =G7/G11*100 -> 108.3041981 | H27: 109.7702935 | I27: 110.7780728 | J27: 110.8791173 | K27: 112.6685245 | L27: 117.4590471 | M27: 121.3584606 | N27: =N7/N11*100 -> 125.41053 | O27: 128.8433364 | P27: 131.5018015 | Q27: 134.1231975
F28: =$F$8 -> 2019-08-30 | G28: =G8/G12*100 -> 108.0678491 | H28: 109.4594209 | I28: 110.584084 | J28: 110.9596916 | K28: 112.5080046 | L28: 117.3274048 | M28: 121.2208316 | N28: =N8/N12*100 -> 125.2683056 | O28: 128.697219 | P28: 131.3526691 | Q28: 133.9710923
B29: BVP defliatorius, metinis augimas proc. | C29: ΔPY(T)=(PY(T)/PY(T–1)–1)∙100 | D29: GDP deflator, annual % change | E29: ΔPY(T)=(PY(T)/PY(T)–1)∙100 | F29: =$F$7 -> 2019-10-01 | H29: =(H27/G27-1)*100 -> 1.353682879 | I29: =(I27/H27-1)*100 -> 0.918080228 | J29: 0.09121341572 | K29: 1.613836105 | L29: 4.251873047 | M29: 3.319806836 | N29: =(N27/M27-1)*100 -> 3.338926164 | O29: 2.737255304 | P29: 2.063331437 | Q29: 1.993429738
F30: =$F$8 -> 2019-08-30 | H30: =(H28/G28-1)*100 -> 1.287683445 | I30: =(I28/H28-1)*100 -> 1.027470425 | J30: 0.3396578646 | K30: 1.395383269 | L30: 4.28360656 | M30: 3.318429092 | N30: 3.338926164 | O30: 2.737255304 | P30: 2.063331437 | Q30: 1.993429738
B31: Vidutinė metinė SVKI infliacija | C31: ΔSVKI(T) | D31: Average annual HICP inflation | E31: ΔHICP(T) | F31: =$F$8 -> 2019-08-30 | G31: 3.2 | H31: 1.2 | I31: 0.2 | J31: -0.7 | K31: 0.7 | L31: 3.7 | M31: 2.5 | N31: 2.4 | O31: 2.3 | P31: 2.1 | Q31: 2
B32: ES nominalus BVP, mlrd. EUR | C32: YNES(T) | D32: EU nominal GDP, billion EUR | E32: YNEU(T) | F32: 2019-10-28 | G32: 13501.734 | H32: 13615.0905 | I32: 14091.4512 | J32: 14854.1064 | K32: 14984.2719 | L32: 15410.2595 | M32: 15898.3116
B33: ES nominalus BVP, metinis augimas proc. | C33: ΔYNES(T)=(YNES(T)/YNES(T–1)–1)∙100 | D33: EU nominal GDP growth, annual % change | E33: ΔYNEU(T)=(YNEU(T)/YNEU(T–1)–1)∙100 | F33: =$F$32 -> 2019-10-28 | H33: =(H32/G32-1)*100 -> 0.8395699397 | I33: 3.498769986 | J33: 5.412183523 | K33: 0.8762930364 | L33: 2.842898226 | M33: =(M32/L32-1)*100 -> 3.167059581
B34: VS biudžeto balansas mln. EUR | C34: BL(T) | D34: Balance of GG budget, million EUR | E34: BL(T) | F34: 2019-10-21 | I34: -226.193 | J34: -100.74 | K34: 90.33 | L34: 192.04 | M34: 270.8
F35: =+F8 -> 2019-08-30 | I35: -226.193 | J35: -100.74 | K35: 90.3 | L35: 192 | M35: 270.8
B36: VS biudžeto balansas proc. BVP | C36: B(T)=BL(T)/YN(T) | D36: Balance of GG budget, % of GDP | E36: B(T)=BL(T)/YN(T) | F36: =+F34 -> 2019-10-21 | I36: -0.6192631663 | J36: =J34/J7*100 -> -0.2699226725 | K36: 0.2322502018 | L36: 0.4543239317 | M36: 0.5982626523 | N36: ='3. GGbudget'!J7 -> 0.01109031846
F37: =F8 -> 2019-08-30 | I37: -0.6192631663 | J37: -0.2691143135 | K37: 0.2324358293 | L37: 0.4550751815 | M37: 0.6002593331 | N37: ='3. GGbudget'!F7 -> 0.05627612352
B38: VS biudžeto dalinis elastingumas pot. BVP | C38: ε | D38: Semi-elasticity of the GG budget to the OG | E38: ε | F38: 2014-12-11 | G38: =H38 -> 0.399 | H38: =I38 -> 0.399 | I38: 0.399 | J38: 0.399 | K38: =L38 -> 0.399 | L38: 0.399 | M38: =N38 -> 0.399 | N38: =0.399 -> 0.399 | O38: =N38 -> 0.399 | P38: 0.399 | Q38: 0.399
B39: VSDF biudžeto semi-elastingumas pot. BVP | C39: εVSDF | D39: Semi-elasticity of the SSIF budget to the OG | E39: εSSIF | F39: =F26 -> 2019-10-28 | G39: =H39 -> 0.1005653272 | H39: =I39 -> 0.1005653272 | I39: 0.1005653272 | J39: 0.1005653272 | K39: 0.1005653272 | L39: =M39 -> 0.1005653272 | M39: 0.1005653272 | N39: =M39 -> 0.1005653272 | O39: =N39 -> 0.1005653272 | P39: =N39 -> 0.1005653272 | Q39: =N39 -> 0.1005653272
B40: PSDF biudžeto semi-elastingumas pot. BVP | C40: εPSDF | D40: Semi-elasticity of the NHIF budget to the OG | E40: εNHIF | F40: =F26 -> 2019-10-28 | N40: 0.04535299071 | O40: =N40 -> 0.04535299071 | P40: =N40 -> 0.04535299071 | Q40: =N40 -> 0.04535299071
C42: Šaltiniai: | E42: Sources:
C43: Europos Komisija, Eurostatas, Lietuvos statistikos departamentas | E43: European Commission, Eurostat, Statistics Lithuania
B44: 2019 rudens ERS duomenys | C44: Finansų ministerija (FM) | D44: 2018 spring EDS data | E44: Ministry of Finance (MoF)
C45: Fiskalinės institucijos skaičiavimai | E45: Independent fiscal institution calculations
C46: ERS – ekonominės raidos scenarijus | E46: EDS – economic development scenario
C47: Dėmesio: langeliai su formulėmis, atnaujinami tik spalvoti langeliai | E47: Warning: cells with formulas, data inputs are marked with coloured cells
C48: Apvalinimo tikslumas | E48: Rounding threshold | F48: 0.05

Sheet 3. GGbudget
B1: ↖ atgal į turinį | D1: ↖ back to content
A2: =Kalba -> LT
B3: 3 lentelė. VS fiskaliniai rodikliai | D3: Table 3. GG fiscal indicators
B4: Rodiklis | C4: Žymėjimas | Formulė | D4: Indicator | E4: Notation | Formula | F4: =IF($A$2="LT","proc. BVP","% of GDP") -> proc. BVP | H4: =IF($A$2="LT","mln. EUR", "mil. EUR") -> mln. EUR | J4: =IF($A$2="LT","proc. BVP","% of GDP") -> proc. BVP | L4: =IF($A$2="LT","mln. EUR", "mil. EUR") -> mln. EUR
F5: ='2. Macro'!N5 -> 2019P | G5: ='2. Macro'!O5 -> 2020P | H5: =F5 -> 2019P | I5: 2020P | J5: 2019P | K5: 2020P | L5: 2019P | M5: 2020P
B6: Nominalus BVP, mln. EUR | D6: Nominal GDP, million EUR | H6: ='2. Macro'!N8 -> 48333.10878 | I6: ='2. Macro'!O8 -> 50862.3375 | L6: ='2. Macro'!N7 -> 48494.41885 | M6: ='2. Macro'!O7 -> 51032.08878
B7: Grynasis skolinimas (+) / grynasis skolinimasis (-), iš jo | C7: B=VP–VI | D7: Net lending (+) /net borrowing (-), of which | E7: B=TR–TE | F7: =F10-F11 -> 0.05627612352 | G7: =G10-G11 -> 0.207815852 | H7: =H10-H11 -> 27.2 | I7: =I10-I11 -> 105.7 | J7: =J10-J11 -> 0.01109031846 | K7: =K10-K11 -> -0.2103761171 | L7: =L10-L11 -> 5.378185486 | M7: =M10-M11 -> -107.3593269
B8: Valstybinis socialinio draudimo fondas | C8: VSDF | D8: State Social Insurance Fund | E8: SSIF | F8: =H8/H6*100 -> 0.8122982566 | G8: =I8/I6*100 -> 0.6827625648 | H8: 392.609 | I8: 347.269 | J8: =L8/L6*100 -> 0.7130438784 | K8: =M8/M6*100 -> 0.5716185701 | L8: 345.786485 | M8: 291.7088962
B9: Privalomojo sveikatos draudimo fondas | C9: PSDF | D9: National Health Insurance Fund | E9: NHIF | F9: =H9/H6*100 -> 0.2172423886 | G9: =I9/I6*100 -> 0.394791136 | H9: 105 | I9: 200.8 | J9: =L9/L6*100 -> 0.2165197614 | K9: =M9/M6*100 -> 0.3934779171 | L9: 105 | M9: 200.8
B10: Visos pajamos | C10: VP | D10: Total revenues | E10: TR | F10: =H10/H6*100 -> 35.45333713 | G10: =I10/I6*100 -> 36.67055216 | H10: 17135.7 | I10: 18651.5 | J10: =L10/L6*100 -> 34.51242365 | K10: =M10/M6*100 -> 35.6211101 | L10: 16736.59928 | M10: 18178.19653
B11: Visos išlaidos, iš jų | C11: VI | D11: Total expenditures, of which | E11: TE | F11: =H11/H6*100 -> 35.397061 | G11: =I11/I6*100 -> 36.4627363 | H11: 17108.5 | I11: 18545.8 | J11: =L11/L6*100 -> 34.50133333 | K11: =M11/M6*100 -> 35.83148622 | L11: 16731.22109 | M11: 18285.55586
B12: Centrinė valdžia, be pervedimų SAF | C12: CV | D12: Central government, net of transfers to SSF | E12: CG | F12: =H12/H6*100 -> 19.62629808 | G12: =I12/I6*100 -> 20.31562155 | H12: 9486 | I12: 10333 | J12: =L12/L6*100 -> 19.39342282 | K12: =M12/M6*100 -> 20.41900148 | L12: 9404.727694 | M12: 10420.24296
B13: Socialinės apsaugos fondai, be pervedimų CV | C13: SAF | D13: Social Security Funds, net of transfers to CG | E13: SSF | F13: =H13/H6*100 -> 11.57591585 | G13: =I13/I6*100 -> 11.80637834 | H13: 5595 | I13: 6005 | J13: =L13/L6*100 -> 12.64777535 | K13: =M13/M6*100 -> 12.88442061 | L13: 6133.465155 | M13: 6575.188966
B14: Konsoliduotos išlaidos VS posektorių, kurių išlaidos > 3 proc. BVP | C14: AV3=CV+SAF | D14: Consolidated expenditure of GG subsectors with exp. > 3 % of GDP | E14: AG3=CG+SSF | F14: =H14/H6*100 -> 31.20221393 | G14: =I14/I6*100 -> 32.1219999 | H14: =H12+H13 -> 15081 | I14: =I12+I13 -> 16338 | J14: =SUM(J12:J13) -> 32.04119818 | K14: =SUM(K12:K13) -> 33.30342209 | L14: =L12+L13 -> 15538.19285 | M14: =M12+M13 -> 16995.43193
B15: Vienkartinės ir kitos laikinosios priemonės | C15: 1klp | D15: One-off and temporary measures | E15: 1off | F15: 0.06310374145 | G15: 0.005701664813 | H15: =F15*H6/100 -> 30.5 | I15: =G15*I6/100 -> 2.9 | J15: =L15/$L$6*100 -> 0.06289383546 | K15: =M15/$M$6*100 -> 0.005682699003 | L15: =H15 -> 30.5 | M15: 2.9
B16: Vienkartinės ir kitos laikinosios priemonės, VSDF | C16: 1klpVSDF | D16: One-off and temporary measures, SSIF | E16: 1offSSIF | F16: =H16/$H$6*100 -> 0 | G16: =I16/I6*100 -> 0 | H16: 0 | I16: 0 | J16: =L16/$L$6*100 -> 0 | K16: =M16/$M$6*100 -> 0 | L16: 0 | M16: 0
B17: Vienkartinės ir kitos laikinosios priemonės, PSDF | C17: 1klpPSDF | D17: One-off and temporary measures, NHIF | E17: 1offNHIF | F17: =H17/$H$6*100 -> 0 | G17: =I17/I7*100 -> 0 | H17: 0 | I17: 0 | J17: =L17/$L$6*100 -> 0 | K17: =M17/$M$6*100 -> 0 | L17: 0 | M17: 0
B18: Lankstumo galimybė dėl vykdomų struktūrinių reformų | C18: SR | D18: Structural reform flexibility clause | E18: SR | F18: 0.5 | G18: 0 | J18: 0.5 | K18: 0
B19: Struktūrinis VS balansas | C19: SB = B–CB–1klp | D19: Structural GG balance | E19: SB = B–CB–1off | F19: =F7-F15-'2. Macro'!N22 -> -1.423250196 | G19: =G7-G15-'2. Macro'!O22 -> -0.6757598129 | J19: =J7-J15-'2. Macro'!N21 -> -1.427278907 | K19: =K7-K15-'2. Macro'!O21 -> -1.30425477
B20: Struktūrinis VSDF balansas | C20: SBVSDF = VSDF– CBVSDF–1klpVSDF | D20: Structural SSIF balance | E20: SBSSIF = SSIF– CBSSIF–1offSSIF | F20: =F8-F16-'2. Macro'!N24 -> 0.4552982566 | G20: =G8-G16-'2. Macro'!O24 -> 0.4615001936 | J20: =J8-J16-'2. Macro'!N23 -> 0.366364348 | K20: =K8-K16-'2. Macro'!O23 -> 0.2973459329
B21: Struktūrinis PSDF balansas | C21: SBPSDF = PSDF– CBPSDF–1klpPSDF | D21: Structural NHIF balance | E21: SBNHIF = NHIF– CBNHIF–1offNHIF | F21: =F9-F17-'2. Macro'!N26 -> 0.05624238859 | G21: =G9-G17-'2. Macro'!O26 -> 0.2950061451 | J21: =J9-J17-'2. Macro'!N25 -> 0.06017409082 | K21: =K9-K17-'2. Macro'!O25 -> 0.2697863357
B22: Vidutinio laikotarpio tikslas | C22: VLT | D22: Medium-term objective | E22: MTO | F22: -1 | G22: -1 | J22: =F22 -> -1 | K22: =G22 -> -1
B23: Struktūrinio postūmio užduotis | C23: SPU | D23: Structural adjustment target | E23: SAT | F23: 0 | G23: 0 | J23: =F23 -> 0 | K23: =G23 -> 0
C25: Šaltiniai: | E25: Sources:
C26: Finansų ministerija, VSDF, PSDF | E26: Ministry of Finance, SSIF, NHIF
C27: Fiskalinės institucijos skaičiavimai | E27: Independent fiscal institution calculations
C29: Dėmesio: langeliai su formulėmis, atnaujinami tik spalvoti langeliai | E29: Warning: cells with formulas, data inputs are marked with coloured cells

Sheet 4. Municipalities (hidden)
B1: ↖ back to content | E1: ↖ atgal į turinį
A2: =Kalba -> LT | B2: Table 4. Budget attributable to local government | E2: 4 lentelė. Vietos valdžios biudžetai
B3: Local government | C3: Appropriations, % of GDP | D3: Code | E3: Savivaldybė | F3: Asignavimai, proc. BVP | G3: Kodas | H3: εi | I3: =IF(A2="LT","Pajamos","Revenues") -> Pajamos | K3: =IF(A2="LT","Išlaidos","Expenditures") -> Išlaidos | M3: =IF(A2="LT","Balansas","Balance") -> Balansas | O3: =IF($A$2="LT","Fiskalinė taisyklė, planavimas", "Fiscal rule, plan") -> Fiskalinė taisyklė, planavimas | Q3: =IF($A$2="LT","Fiskalinė taisyklė, vykdymas", "Fiscal rule, implementation") -> Fiskalinė taisyklė, vykdymas
I4: =IF($A$2="LT","Planavimas","Plan") -> Planavimas | J4: =IF($A$2="LT","Vykdymas","Implementation") -> Vykdymas | K4: =I4 -> Planavimas | L4: =J4 -> Vykdymas | M4: =K4 -> Planavimas | N4: =L4 -> Vykdymas | O4: FM | P4: IFI | Q4: FM | R4: IFI | T4: ="" ->  | U4: ="" ->  | V4: ="" ->  | W4: ="" ->  | X4: ="" ->  | Y4: ="" ->  | Z4: ="" ->  | AA4: ="" -> 
B5: Vilniaus m. | C5: =K5/$H$67/10 -> 1.54913034 | D5: 1 | E5: Vilniaus m. | F5: =K5/$H$68/10 -> 1.194254652 | G5: 1 | H5: =IF(F5>0.3, K5/'3. GGbudget'!$I$11/1000*'2. Macro'!$N$38,0) -> 0.01241849581 | I5: 559989.4 | J5: 587979.8 | K5: 577220.4 | L5: 546819.7 | M5: =I5-K5 -> -17231 | N5: =J5-L5 -> 41160.1 | O5: =IF(H5>0,IF(M5/$H$67/10-H5*$H$69<-eps,1,0),IF(($H$69+eps>=0)*(M5<0),1,IF(($H$69+eps<0)*(K5/I5>1.015),1,0))) -> 1 | P5: =IF(H5>0,IF(M5/$I$67/10-H5*$I$69<-eps,1,0),IF(($I$69+eps>=0)*(M5<0),1,IF(($I$69+eps<0)*(K5/I5>1.015),1,0))) -> 1 | Q5: =IF(H5>0,IF(N5/$H$68/10-H5*$H$69<-eps,1,0),IF(($H$69+eps>=0)*(N5<0),1,IF(($H$69+eps<0)*(L5/J5>1.015),1,0))) -> 0 | R5: =IF(H5>0,IF(N5/$I$68/10-H5*$I$69<-eps,1,0),IF(($I$69+eps>=0)*(N5<0),1,IF(($I$69+eps<0)*(L5/J5>1.015),1,0))) -> 0 | T5: =CONCATENATE(T4,IF((H5>0)*(O5=1),CONCATENATE(E5," "),"")) -> Vilniaus m. | U5: =CONCATENATE(U4,IF((H5=0)*(O5=1),CONCATENATE(E5," "),"")) ->  | V5: =CONCATENATE(V4,IF((H5>0)*(P5=1),CONCATENATE(E5," "),"")) -> Vilniaus m. | W5: =CONCATENATE(W4,IF((H5=0)*(P5=1),CONCATENATE(E5," "),"")) ->  | X5: =CONCATENATE(X4,IF((H5>0)*(Q5=1),CONCATENATE(E5," "),"")) ->  | Y5: =CONCATENATE(Y4,IF((H5=0)*(Q5=1),CONCATENATE(E5," "),"")) ->  | Z5: =CONCATENATE(Z4,IF((H5>0)*(R5=1),CONCATENATE(E5," "),"")) ->  | AA5: =CONCATENATE(AA4,IF((H5=0)*(R5=1),CONCATENATE(E5," "),"")) -> 
B6: Alytaus m. | C6: 0.1471165569 | D6: 2 | E6: Alytaus m. | F6: =K6/$H$68/10 -> 0.1134150097 | G6: 2 | H6: =IF(F6>0.3, K6/'3. GGbudget'!$I$11/1000*'2. Macro'!$N$38,0) -> 0 | I6: 49115 | J6: 59218.1 | K6: 54817 | L6: 51667.5 | M6: -5702 | N6: 7550.6 | O6: =IF(H6>0,IF(M6/$H$67/10-H6*$H$69<-eps,1,0),IF(($H$69+eps>=0)*(M6<0),1,IF(($H$69+eps<0)*(K6/I6>1.015),1,0))) -> 1 | P6: 1 | Q6: =IF(H6>0,IF(N6/$H$68/10-H6*$H$69<-eps,1,0),IF(($H$69+eps>=0)*(N6<0),1,IF(($H$69+eps<0)*(L6/J6>1.015),1,0))) -> 0 | R6: =IF(H6>0,IF(N6/$I$68/10-H6*$I$69<-eps,1,0),IF(($I$69+eps>=0)*(N6<0),1,IF(($I$69+eps<0)*(L6/J6>1.015),1,0))) -> 0 | T6: =CONCATENATE(T5,IF((H6>0)*(O6=1),CONCATENATE(E6," "),"")) -> Vilniaus m. | U6: =CONCATENATE(U5,IF((H6=0)*(O6=1),CONCATENATE(E6," "),"")) -> Alytaus m. | V6: =CONCATENATE(V5,IF((H6>0)*(P6=1),CONCATENATE(E6," "),"")) -> Vilniaus m. | W6: =CONCATENATE(W5,IF((H6=0)*(P6=1),CONCATENATE(E6," "),"")) -> Alytaus m. | X6: =CONCATENATE(X5,IF((H6>0)*(Q6=1),CONCATENATE(E6," "),"")) ->  | Y6: =CONCATENATE(Y5,IF((H6=0)*(Q6=1),CONCATENATE(E6," "),"")) ->  | Z6: =CONCATENATE(Z5,IF((H6>0)*(R6=1),CONCATENATE(E6," "),"")) ->  | AA6: =CONCATENATE(AA5,IF((H6=0)*(R6=1),CONCATENATE(E6," "),"")) -> 
B7: Birštono m. | C7: 0.02284215553 | D7: 3 | E7: Birštono m. | F7: 0.01760946112 | G7: 3 | H7: =IF(F7>0.3, K7/'3. GGbudget'!$I$11/1000*'2. Macro'!$N$38,0) -> 0 | I7: 8517.7 | J7: 8679.6 | K7: 8511.2 | L7: 8096.9 | M7: 6.5 | N7: 582.7 | O7: 0 | P7: 0 | Q7: 0 | R7: 0 | T7: Vilniaus m. | U7: Alytaus m. | V7: Vilniaus m. | W7: Alytaus m.
B8: Druskininkų m. | C8: 0.06142143761 | D8: 4 | E8: Druskininkų m. | F8: 0.04735097861 | G8: 4 | H8: =IF(F8>0.3, K8/'3. GGbudget'!$I$11/1000*'2. Macro'!$N$38,0) -> 0 | I8: 22174.4 | J8: 23007.6 | K8: 22886.2 | L8: 21486.8 | M8: -711.8 | N8: 1520.8 | O8: =IF(H8>0,IF(M8/$H$67/10-H8*$H$69<-eps,1,0),IF(($H$69+eps>=0)*(M8<0),1,IF(($H$69+eps<0)*(K8/I8>1.015),1,0))) -> 1 | P8: 1 | Q8: 0 | R8: 0 | T8: Vilniaus m. | U8: Alytaus m. Druskininkų m. | V8: Vilniaus m. | W8: Alytaus m. Druskininkų m.
B9: Kauno m. | C9: 0.8621410797 | D9: 5 | E9: Kauno m. | F9: 0.6646412947 | G9: 5 | H9: =IF(F9>0.3, K9/'3. GGbudget'!$I$11/1000*'2. Macro'!$N$38,0) -> 0.006911294104 | I9: 321241.8 | J9: 320978.6 | K9: 321241.8 | L9: 292694 | M9: 0 | N9: 28284.6 | O9: 0 | P9: 0 | Q9: 0 | R9: 0 | T9: Vilniaus m. | U9: Alytaus m. Druskininkų m. | V9: Vilniaus m. | W9: Alytaus m. Druskininkų m.
B10: Klaipėdos m. | C10: 0.5047702533 | D10: 6 | E10: Klaipėdos m. | F10: 0.3891371872 | G10: 6 | H10: =IF(F10>0.3, K10/'3. GGbudget'!$I$11/1000*'2. Macro'!$N$38,0) -> 0.004046455688 | I10: 191141.8 | J10: 195975.3 | K10: 188082.1 | L10: 169971.5 | M10: 3059.7 | N10: 26003.8 | O10: 0 | P10: 0 | Q10: 0 | R10: 0 | T10: Vilniaus m. | U10: Alytaus m. Druskininkų m. | V10: Vilniaus m. | W10: Alytaus m. Druskininkų m.
B11: Marijampolės m. | C11: 0.1596589164 | D11: 7 | E11: Marijampolės m. | F11: 0.123084158 | G11: 7 | H11: =IF(F11>0.3, K11/'3. GGbudget'!$I$11/1000*'2. Macro'!$N$38,0) -> 0 | I11: 59490.4 | J11: 59337.4 | K11: 59490.4 | L11: 58823 | M11: 0 | N11: 514.4 | O11: 0 | P11: 0 | Q11: 0 | R11: 0 | T11: Vilniaus m. | U11: Alytaus m. Druskininkų m. | V11: Vilniaus m. | W11: Alytaus m. Druskininkų m.
B12: Neringos m. | C12: 0.03116186158 | D12: 8 | E12: Neringos m. | F12: 0.02402328402 | G12: 8 | H12: =IF(F12>0.3, K12/'3. GGbudget'!$I$11/1000*'2. Macro'!$N$38,0) -> 0 | I12: 11611.2 | J12: 12023 | K12: 11611.2 | L12: 10369.2 | M12: 0 | N12: 1653.8 | O12: 0 | P12: 0 | Q12: 0 | R12: 0 | T12: Vilniaus m. | U12: Alytaus m. Druskininkų m. | V12: Vilniaus m. | W12: Alytaus m. Druskininkų m.
B13: Palangos m. | C13: 0.07109671899 | D13: 9 | E13: Palangos m. | F13: 0.05480984085 | G13: 9 | H13: =IF(F13>0.3, K13/'3. GGbudget'!$I$11/1000*'2. Macro'!$N$38,0) -> 0 | I13: 27105.7 | J13: 27576.4 | K13: 26491.3 | L13: 25205 | M13: 614.4 | N13: 2371.4 | O13: 0 | P13: 0 | Q13: 0 | R13: 0 | T13: Vilniaus m. | U13: Alytaus m. Druskininkų m. | V13: Vilniaus m. | W13: Alytaus m. Druskininkų m.
B14: Panevėžio m. | C14: 0.2093600352 | D14: 10 | E14: Panevėžio m. | F14: 0.1613997154 | G14: 10 | H14: =IF(F14>0.3, K14/'3. GGbudget'!$I$11/1000*'2. Macro'!$N$38,0) -> 0 | I14: 83380.1 | J14: 82619.7 | K14: 78009.5 | L14: 78496.9 | M14: 5370.6 | N14: 4122.8 | O14: 0 | P14: 0 | Q14: 0 | R14: 0 | T14: Vilniaus m. | U14: Alytaus m. Druskininkų m. | V14: Vilniaus m. | W14: Alytaus m. Druskininkų m.
B15: Šiaulių m. | C15: 0.298339023 | D15: 11 | E15: Šiaulių m. | F15: 0.2299953444 | G15: 11 | H15: =IF(F15>0.3, K15/'3. GGbudget'!$I$11/1000*'2. Macro'!$N$38,0) -> 0 | I15: 113796.2 | J15: 114535.3 | K15: 111163.9 | L15: 97994.2 | M15: 2632.3 | N15: 16541.1 | O15: 0 | P15: 0 | Q15: 0 | R15: 0 | T15: Vilniaus m. | U15: Alytaus m. Druskininkų m. | V15: Vilniaus m. | W15: Alytaus m. Druskininkų m.
B16: Visagino m. | C16: 0.05814427856 | D16: 12 | E16: Visagino m. | F16: 0.04482455308 | G16: 12 | H16: =IF(F16>0.3, K16/'3. GGbudget'!$I$11/1000*'2. Macro'!$N$38,0) -> 0 | I16: 22001.6 | J16: 22324.7 | K16: 21665.1 | L16: 19705 | M16: 336.5 | N16: 2619.7 | O16: 0 | P16: 0 | Q16: 0 | R16: 0 | T16: Vilniaus m. | U16: Alytaus m. Druskininkų m. | V16: Vilniaus m. | W16: Alytaus m. Druskininkų m.
B17: Akmenės raj. | C17: 0.07258514124 | D17: 13 | E17: Akmenės raj. | F17: 0.05595729445 | G17: 13 | H17: =IF(F17>0.3, K17/'3. GGbudget'!$I$11/1000*'2. Macro'!$N$38,0) -> 0 | I17: 27045.9 | J17: 27433.3 | K17: 27045.9 | L17: 24110.2 | M17: 0 | N17: 3323.1 | O17: 0 | P17: 0 | Q17: 0 | R17: 0 | T17: Vilniaus m. | U17: Alytaus m. Druskininkų m. | V17: Vilniaus m. | W17: Alytaus m. Druskininkų m.
B18: Alytaus raj. | C18: 0.05767676476 | D18: 14 | E18: Alytaus raj. | F18: 0.04446413761 | G18: 14 | H18: =IF(F18>0.3, K18/'3. GGbudget'!$I$11/1000*'2. Macro'!$N$38,0) -> 0 | I18: 24665.2 | J18: 25690.5 | K18: 21490.9 | L18: 19221.4 | M18: 3174.3 | N18: 6469.1 | O18: 0 | P18: 0 | Q18: =IF(H18>0,IF(N18/$H$68/10-H18*$H$69<-eps,1,0),IF(($H$69+eps>=0)*(N18<0),1,IF(($H$69+eps<0)*(L18/J18>1.015),1,0))) -> 0 | R18: =IF(H18>0,IF(N18/$I$68/10-H18*$I$69<-eps,1,0),IF(($I$69+eps>=0)*(N18<0),1,IF(($I$69+eps<0)*(L18/J18>1.015),1,0))) -> 0 | T18: Vilniaus m. | U18: Alytaus m. Druskininkų m. | V18: Vilniaus m. | W18: Alytaus m. Druskininkų m.
B19: Anykščių raj. | C19: 0.07385403061 | D19: 15 | E19: Anykščių raj. | F19: 0.05693550589 | G19: 15 | H19: =IF(F19>0.3, K19/'3. GGbudget'!$I$11/1000*'2. Macro'!$N$38,0) -> 0 | I19: 27518.7 | J19: 28085.2 | K19: 27518.7 | L19: 26058.4 | M19: 0 | N19: 2026.8 | O19: 0 | P19: 0 | Q19: 0 | R19: 0 | T19: Vilniaus m. | U19: Alytaus m. Druskininkų m. | V19: Vilniaus m. | W19: Alytaus m. Druskininkų m.
B20: Biržų raj. | C20: 0.06369620627 | D20: 16 | E20: Biržų raj. | F20: 0.04910464193 | G20: 16 | H20: =IF(F20>0.3, K20/'3. GGbudget'!$I$11/1000*'2. Macro'!$N$38,0) -> 0 | I20: 23733.8 | J20: 24028 | K20: 23733.8 | L20: 23132.6 | M20: 0 | N20: 895.4 | O20: 0 | P20: 0 | Q20: 0 | R20: 0 | T20: Vilniaus m. | U20: Alytaus m. Druskininkų m. | V20: Vilniaus m. | W20: Alytaus m. Druskininkų m.
B21: Ignalinos raj. | C21: 0.04944454981 | D21: 17 | E21: Ignalinos raj. | F21: 0.0381177633 | G21: 17 | H21: =IF(F21>0.3, K21/'3. GGbudget'!$I$11/1000*'2. Macro'!$N$38,0) -> 0 | I21: 18423.5 | J21: 18753.9 | K21: 18423.5 | L21: 17555.2 | M21: 0 | N21: 1198.7 | O21: 0 | P21: 0 | Q21: 0 | R21: 0 | T21: Vilniaus m. | U21: Alytaus m. Druskininkų m. | V21: Vilniaus m. | W21: Alytaus m. Druskininkų m.
B22: Jonavos raj. | C22: 0.1228595146 | D22: 18 | E22: Jonavos raj. | F22: 0.09471478486 | G22: 18 | H22: =IF(F22>0.3, K22/'3. GGbudget'!$I$11/1000*'2. Macro'!$N$38,0) -> 0 | I22: 46867.5 | J22: 46776.6 | K22: 45778.6 | L22: 41451.9 | M22: 1088.9 | N22: 5324.7 | O22: 0 | P22: 0 | Q22: 0 | R22: 0 | T22: Vilniaus m. | U22: Alytaus m. Druskininkų m. | V22: Vilniaus m. | W22: Alytaus m. Druskininkų m.
B23: Joniškio raj. | C23: 0.06411111807 | D23: 19 | E23: Joniškio raj. | F23: 0.04942450548 | G23: 19 | H23: =IF(F23>0.3, K23/'3. GGbudget'!$I$11/1000*'2. Macro'!$N$38,0) -> 0 | I23: 23888.4 | J23: 24133.7 | K23: 23888.4 | L23: 23432.1 | M23: 0 | N23: 701.6 | O23: 0 | P23: 0 | Q23: 0 | R23: 0 | T23: Vilniaus m. | U23: Alytaus m. Druskininkų m. | V23: Vilniaus m. | W23: Alytaus m. Druskininkų m.
B24: Jurbarko raj. | C24: 0.07105646235 | D24: 20 | E24: Jurbarko raj. | F24: 0.05477880622 | G24: 20 | H24: =IF(F24>0.3, K24/'3. GGbudget'!$I$11/1000*'2. Macro'!$N$38,0) -> 0 | I24: 26476.3 | J24: 26516.7 | K24: 26476.3 | L24: 25097 | M24: 0 | N24: 1419.7 | O24: 0 | P24: 0 | Q24: 0 | R24: 0 | T24: Vilniaus m. | U24: Alytaus m. Druskininkų m. | V24: Vilniaus m. | W24: Alytaus m. Druskininkų m.
B25: Kaišiadorių raj. | C25: 0.07710596216 | D25: 21 | E25: Kaišiadorių raj. | F25: 0.05944248306 | G25: 21 | H25: =IF(F25>0.3, K25/'3. GGbudget'!$I$11/1000*'2. Macro'!$N$38,0) -> 0 | I25: 31073.7 | J25: 29913.6 | K25: 28730.4 | L25: 26162.2 | M25: 2343.3 | N25: 3751.4 | O25: 0 | P25: 0 | Q25: 0 | R25: 0 | T25: Vilniaus m. | U25: Alytaus m. Druskininkų m. | V25: Vilniaus m. | W25: Alytaus m. Druskininkų m.
B26: Kauno raj. | C26: 0.194390737 | D26: 22 | E26: Kauno raj. | F26: 0.1498595928 | G26: 22 | H26: =IF(F26>0.3, K26/'3. GGbudget'!$I$11/1000*'2. Macro'!$N$38,0) -> 0 | I26: 73871.5 | J26: 72224.2 | K26: 72431.8 | L26: 69139.5 | M26: 1439.7 | N26: 3084.7 | O26: 0 | P26: 0 | Q26: 0 | R26: 0 | T26: Vilniaus m. | U26: Alytaus m. Druskininkų m. | V26: Vilniaus m. | W26: Alytaus m. Druskininkų m.
B27: Kėdainių raj. | C27: 0.1345996934 | D27: 23 | E27: Kėdainių raj. | F27: 0.1037655166 | G27: 23 | H27: =IF(F27>0.3, K27/'3. GGbudget'!$I$11/1000*'2. Macro'!$N$38,0) -> 0 | I27: 50153.1 | J27: 52993.3 | K27: 50153.1 | L27: 47284.9 | M27: 0 | N27: 5708.4 | O27: 0 | P27: 0 | Q27: 0 | R27: 0 | T27: Vilniaus m. | U27: Alytaus m. Druskininkų m. | V27: Vilniaus m. | W27: Alytaus m. Druskininkų m.
B28: Kelmės raj. | C28: 0.08597825772 | D28: 24 | E28: Kelmės raj. | F28: 0.06628230794 | G28: 24 | H28: =IF(F28>0.3, K28/'3. GGbudget'!$I$11/1000*'2. Macro'!$N$38,0) -> 0 | I28: 32036.3 | J28: 30528.7 | K28: 32036.3 | L28: 29428.5 | M28: 0 | N28: 1100.2 | O28: 0 | P28: 0 | Q28: 0 | R28: 0 | T28: Vilniaus m. | U28: Alytaus m. Druskininkų m. | V28: Vilniaus m. | W28: Alytaus m. Druskininkų m.
B29: Klaipėdos raj. | C29: 0.1259879925 | D29: 25 | E29: Klaipėdos raj. | F29: 0.09712658917 | G29: 25 | H29: =IF(F29>0.3, K29/'3. GGbudget'!$I$11/1000*'2. Macro'!$N$38,0) -> 0 | I29: 47423.4 | J29: 46245.1 | K29: 46944.3 | L29: 45315.1 | M29: 479.1 | N29: 930 | O29: 0 | P29: 0 | Q29: 0 | R29: 0 | T29: Vilniaus m. | U29: Alytaus m. Druskininkų m. | V29: Vilniaus m. | W29: Alytaus m. Druskininkų m.
B30: Kretingos raj. | C30: 0.1028135855 | D30: 26 | E30: Kretingos raj. | F30: 0.07926098893 | G30: 26 | H30: =IF(F30>0.3, K30/'3. GGbudget'!$I$11/1000*'2. Macro'!$N$38,0) -> 0 | I30: 38358.4 | J30: 37808.2 | K30: 38309.3 | L30: 36224.4 | M30: 49.1 | N30: 1583.8 | O30: 0 | P30: 0 | Q30: 0 | R30: 0 | T30: Vilniaus m. | U30: Alytaus m. Druskininkų m. | V30: Vilniaus m. | W30: Alytaus m. Druskininkų m.
B31: Kupiškio raj. | C31: 0.06100786771 | D31: 27 | E31: Kupiškio raj. | F31: 0.04703214954 | G31: 27 | H31: =IF(F31>0.3, K31/'3. GGbudget'!$I$11/1000*'2. Macro'!$N$38,0) -> 0 | I31: 22898.1 | J31: 23403.3 | K31: 22732.1 | L31: 22063.5 | M31: 166 | N31: 1339.8 | O31: 0 | P31: 0 | Q31: 0 | R31: 0 | T31: Vilniaus m. | U31: Alytaus m. Druskininkų m. | V31: Vilniaus m. | W31: Alytaus m. Druskininkų m.
B32: Lazdijų raj. | C32: 0.05803612238 | D32: 28 | E32: Lazdijų raj. | F32: 0.04474117338 | G32: 28 | H32: =IF(F32>0.3, K32/'3. GGbudget'!$I$11/1000*'2. Macro'!$N$38,0) -> 0 | I32: 21624.8 | J32: 22132.4 | K32: 21624.8 | L32: 20225.5 | M32: 0 | N32: 1906.9 | O32: 0 | P32: 0 | Q32: 0 | R32: 0 | T32: Vilniaus m. | U32: Alytaus m. Druskininkų m. | V32: Vilniaus m. | W32: Alytaus m. Druskininkų m.
B33: Mažeikių raj. | C33: 0.1455339342 | D33: 30 | E33: Mažeikių raj. | F33: 0.112194935 | G33: 30 | H33: =IF(F33>0.3, K33/'3. GGbudget'!$I$11/1000*'2. Macro'!$N$38,0) -> 0 | I33: 54227.3 | J33: 52534.7 | K33: 54227.3 | L33: 51246.6 | M33: 0 | N33: 1288.1 | O33: 0 | P33: 0 | Q33: 0 | R33: 0 | T33: Vilniaus m. | U33: Alytaus m. Druskininkų m. | V33: Vilniaus m. | W33: Alytaus m. Druskininkų m.
B34: Molėtų raj. | C34: 0.04985167865 | D34: 31 | E34: Molėtų raj. | F34: 0.03843162682 | G34: 31 | H34: =IF(F34>0.3, K34/'3. GGbudget'!$I$11/1000*'2. Macro'!$N$38,0) -> 0 | I34: 18575.2 | J34: 19023.5 | K34: 18575.2 | L34: 18245.6 | M34: 0 | N34: 777.9 | O34: 0 | P34: 0 | Q34: 0 | R34: 0 | T34: Vilniaus m. | U34: Alytaus m. Druskininkų m. | V34: Vilniaus m. | W34: Alytaus m. Druskininkų m.
B35: Pakruojo raj. | C35: 0.05701521394 | D35: 32 | E35: Pakruojo raj. | F35: 0.04395413524 | G35: 32 | H35: =IF(F35>0.3, K35/'3. GGbudget'!$I$11/1000*'2. Macro'!$N$38,0) -> 0 | I35: 21244.4 | J35: 20687.2 | K35: 21244.4 | L35: 20078.9 | M35: 0 | N35: 608.3 | O35: 0 | P35: 0 | Q35: 0 | R35: 0 | T35: Vilniaus m. | U35: Alytaus m. Druskininkų m. | V35: Vilniaus m. | W35: Alytaus m. Druskininkų m.
B36: Panevėžio raj. | C36: 0.08286776117 | D36: 33 | E36: Panevėžio raj. | F36: 0.06388436576 | G36: 33 | H36: =IF(F36>0.3, K36/'3. GGbudget'!$I$11/1000*'2. Macro'!$N$38,0) -> 0 | I36: 28639.6 | J36: 32231.3 | K36: 30877.3 | L36: 29335.1 | M36: -2237.7 | N36: 2896.2 | O36: 1 | P36: 1 | Q36: 0 | R36: 0 | T36: Vilniaus m. | U36: Alytaus m. Druskininkų m. Panevėžio raj. | V36: Vilniaus m. | W36: Alytaus m. Druskininkų m. Panevėžio raj.
B37: Pasvalio raj. | C37: =K37/$H$67/10 -> 0.06954334936 | D37: 34 | E37: Pasvalio raj. | F37: 0.05361231804 | G37: 34 | H37: =IF(F37>0.3, K37/'3. GGbudget'!$I$11/1000*'2. Macro'!$N$38,0) -> 0 | I37: 25912.5 | J37: 25886.9 | K37: 25912.5 | L37: 25543.7 | M37: =I37-K37 -> 0 | N37: =J37-L37 -> 343.2 | O37: =IF(H37>0,IF(M37/$H$67/10-H37*$H$69<-eps,1,0),IF(($H$69+eps>=0)*(M37<0),1,IF(($H$69+eps<0)*(K37/I37>1.015),1,0))) -> 0 | P37: =IF(H37>0,IF(M37/$I$67/10-H37*$I$69<-eps,1,0),IF(($I$69+eps>=0)*(M37<0),1,IF(($I$69+eps<0)*(K37/I37>1.015),1,0))) -> 0 | Q37: =IF(H37>0,IF(N37/$H$68/10-H37*$H$69<-eps,1,0),IF(($H$69+eps>=0)*(N37<0),1,IF(($H$69+eps<0)*(L37/J37>1.015),1,0))) -> 0 | R37: =IF(H37>0,IF(N37/$I$68/10-H37*$I$69<-eps,1,0),IF(($I$69+eps>=0)*(N37<0),1,IF(($I$69+eps<0)*(L37/J37>1.015),1,0))) -> 0 | T37: Vilniaus m. | U37: Alytaus m. Druskininkų m. Panevėžio raj. | V37: Vilniaus m. | W37: Alytaus m. Druskininkų m. Panevėžio raj.
B38: Plungės raj. | C38: 0.09224594853 | D38: 35 | E38: Plungės raj. | F38: 0.07111419246 | G38: 35 | H38: =IF(F38>0.3, K38/'3. GGbudget'!$I$11/1000*'2. Macro'!$N$38,0) -> 0 | I38: 34371.7 | J38: 34281.4 | K38: 34371.7 | L38: 33241.8 | M38: 0 | N38: 1039.6 | O38: 0 | P38: 0 | Q38: 0 | R38: 0 | T38: Vilniaus m. | U38: Alytaus m. Druskininkų m. Panevėžio raj. | V38: Vilniaus m. | W38: Alytaus m. Druskininkų m. Panevėžio raj.
B39: Prienų raj. | C39: 0.06924813399 | D39: 36 | E39: Prienų raj. | F39: 0.05338473078 | G39: 36 | H39: =IF(F39>0.3, K39/'3. GGbudget'!$I$11/1000*'2. Macro'!$N$38,0) -> 0 | I39: 25802.5 | J39: 26213.5 | K39: 25802.5 | L39: 25243.9 | M39: 0 | N39: 969.6 | O39: 0 | P39: 0 | Q39: 0 | R39: 0 | T39: Vilniaus m. | U39: Alytaus m. Druskininkų m. Panevėžio raj. | V39: Vilniaus m. | W39: Alytaus m. Druskininkų m. Panevėžio raj.
B40: Radviliškio raj. | C40: 0.1088762358 | D40: 37 | E40: Radviliškio raj. | F40: 0.08393480374 | G40: 37 | H40: =IF(F40>0.3, K40/'3. GGbudget'!$I$11/1000*'2. Macro'!$N$38,0) -> 0 | I40: 40568.3 | J40: 41333.4 | K40: 40568.3 | L40: 37009.5 | M40: 0 | N40: 4323.9 | O40: 0 | P40: 0 | Q40: 0 | R40: 0 | T40: Vilniaus m. | U40: Alytaus m. Druskininkų m. Panevėžio raj. | V40: Vilniaus m. | W40: Alytaus m. Druskininkų m. Panevėžio raj.
B41: Raseinių raj. | C41: 0.09189974141 | D41: 38 | E41: Raseinių raj. | F41: 0.07084729466 | G41: 38 | H41: =IF(F41>0.3, K41/'3. GGbudget'!$I$11/1000*'2. Macro'!$N$38,0) -> 0 | I41: 34983.4 | J41: 35149.2 | K41: 34242.7 | L41: 33395.8 | M41: 740.7 | N41: 1753.4 | O41: 0 | P41: 0 | Q41: 0 | R41: 0 | T41: Vilniaus m. | U41: Alytaus m. Druskininkų m. Panevėžio raj. | V41: Vilniaus m. | W41: Alytaus m. Druskininkų m. Panevėžio raj.
B42: Rokiškio raj. | C42: 0.08059030873 | D42: 39 | E42: Rokiškio raj. | F42: 0.06212863347 | G42: 39 | H42: =IF(F42>0.3, K42/'3. GGbudget'!$I$11/1000*'2. Macro'!$N$38,0) -> 0 | I42: 30028.7 | J42: 30399.5 | K42: 30028.7 | L42: 29688.4 | M42: 0 | N42: 711.1 | O42: 0 | P42: 0 | Q42: 0 | R42: 0 | T42: Vilniaus m. | U42: Alytaus m. Druskininkų m. Panevėžio raj. | V42: Vilniaus m. | W42: Alytaus m. Druskininkų m. Panevėžio raj.
B43: Skuodo r. | C43: 0.04550691345 | D43: 40 | E43: Skuodo r. | F43: 0.03508216299 | G43: 40 | H43: =IF(F43>0.3, K43/'3. GGbudget'!$I$11/1000*'2. Macro'!$N$38,0) -> 0 | I43: 17100.7 | J43: 17313.9 | K43: 16956.3 | L43: 16324.4 | M43: 144.4 | N43: 989.5 | O43: 0 | P43: 0 | Q43: 0 | R43: 0 | T43: Vilniaus m. | U43: Alytaus m. Druskininkų m. Panevėžio raj. | V43: Vilniaus m. | W43: Alytaus m. Druskininkų m. Panevėžio raj.
B44: Šakių raj. | C44: 0.07573508931 | D44: 41 | E44: Šakių raj. | F44: 0.05838565056 | G44: 41 | H44: =IF(F44>0.3, K44/'3. GGbudget'!$I$11/1000*'2. Macro'!$N$38,0) -> 0 | I44: 28219.6 | J44: 28713 | K44: 28219.6 | L44: 27599.6 | M44: 0 | N44: 1113.4 | O44: 0 | P44: 0 | Q44: 0 | R44: 0 | T44: Vilniaus m. | U44: Alytaus m. Druskininkų m. Panevėžio raj. | V44: Vilniaus m. | W44: Alytaus m. Druskininkų m. Panevėžio raj.
B45: Šalčininkų raj. | C45: 0.08124112445 | D45: 42 | E45: Šalčininkų raj. | F45: 0.06263035994 | G45: 42 | H45: =IF(F45>0.3, K45/'3. GGbudget'!$I$11/1000*'2. Macro'!$N$38,0) -> 0 | I45: 30466.5 | J45: 31091.2 | K45: 30271.2 | L45: 30038.4 | M45: 195.3 | N45: 1052.8 | O45: 0 | P45: 0 | Q45: 0 | R45: 0 | T45: Vilniaus m. | U45: Alytaus m. Druskininkų m. Panevėžio raj. | V45: Vilniaus m. | W45: Alytaus m. Druskininkų m. Panevėžio raj.
B46: Šiaulių raj. | C46: 0.09615191633 | D46: 43 | E46: Šiaulių raj. | F46: 0.07412537886 | G46: 43 | H46: =IF(F46>0.3, K46/'3. GGbudget'!$I$11/1000*'2. Macro'!$N$38,0) -> 0 | I46: 35827.1 | J46: 36107.3 | K46: 35827.1 | L46: 34211 | M46: 0 | N46: 1896.3 | O46: 0 | P46: 0 | Q46: 0 | R46: 0 | T46: Vilniaus m. | U46: Alytaus m. Druskininkų m. Panevėžio raj. | V46: Vilniaus m. | W46: Alytaus m. Druskininkų m. Panevėžio raj.
B47: Šilalės raj. | C47: 0.06504158326 | D47: 44 | E47: Šilalės raj. | F47: 0.05014181916 | G47: 44 | H47: =IF(F47>0.3, K47/'3. GGbudget'!$I$11/1000*'2. Macro'!$N$38,0) -> 0 | I47: 24065.1 | J47: 24831.7 | K47: 24235.1 | L47: 23360 | M47: -170 | N47: 1471.7 | O47: 1 | P47: 1 | Q47: 0 | R47: 0 | T47: Vilniaus m. | U47: Alytaus m. Druskininkų m. Panevėžio raj. Šilalės raj. | V47: Vilniaus m. | W47: Alytaus m. Druskininkų m. Panevėžio raj. Šilalės raj.
B48: Šilutės raj. | C48: 0.1110543885 | D48: 45 | E48: Šilutės raj. | F48: 0.08561398396 | G48: 45 | H48: =IF(F48>0.3, K48/'3. GGbudget'!$I$11/1000*'2. Macro'!$N$38,0) -> 0 | I48: 41521.2 | J48: 42528.1 | K48: 41379.9 | L48: 41156.3 | M48: 141.3 | N48: 1371.8 | O48: 0 | P48: 0 | Q48: 0 | R48: 0 | T48: Vilniaus m. | U48: Alytaus m. Druskininkų m. Panevėžio raj. Šilalės raj. | V48: Vilniaus m. | W48: Alytaus m. Druskininkų m. Panevėžio raj. Šilalės raj.
B49: Širvintų raj. | C49: 0.05198125502 | D49: 46 | E49: Širvintų raj. | F49: 0.04007335859 | G49: 46 | H49: =IF(F49>0.3, K49/'3. GGbudget'!$I$11/1000*'2. Macro'!$N$38,0) -> 0 | I49: 19368.7 | J49: 18757.1 | K49: 19368.7 | L49: 17905.2 | M49: 0 | N49: 851.9 | O49: 0 | P49: 0 | Q49: 0 | R49: 0 | T49: Vilniaus m. | U49: Alytaus m. Druskininkų m. Panevėžio raj. Šilalės raj. | V49: Vilniaus m. | W49: Alytaus m. Druskininkų m. Panevėžio raj. Šilalės raj.
B50: Švenčionių raj. | C50: 0.0715929492 | D50: 47 | E50: Švenčionių raj. | F50: 0.05519239435 | G50: 47 | H50: =IF(F50>0.3, K50/'3. GGbudget'!$I$11/1000*'2. Macro'!$N$38,0) -> 0 | I50: 25839.6 | J50: 25936.1 | K50: 26676.2 | L50: 24892 | M50: -836.6 | N50: 1044.1 | O50: =IF(H50>0,IF(M50/$H$67/10-H50*$H$69<-eps,1,0),IF(($H$69+eps>=0)*(M50<0),1,IF(($H$69+eps<0)*(K50/I50>1.015),1,0))) -> 1 | P50: 1 | Q50: 0 | R50: 0 | T50: Vilniaus m. | U50: Alytaus m. Druskininkų m. Panevėžio raj. Šilalės raj. Švenčionių raj. | V50: Vilniaus m. | W50: Alytaus m. Druskininkų m. Panevėžio raj. Šilalės raj. Švenčionių raj.
B51: Tauragės raj. | C51: 0.1050722515 | D51: 48 | E51: Tauragės raj. | F51: 0.08100223839 | G51: 48 | H51: =IF(F51>0.3, K51/'3. GGbudget'!$I$11/1000*'2. Macro'!$N$38,0) -> 0 | I51: 39150.9 | J51: 40272.4 | K51: 39150.9 | L51: 37046.2 | M51: 0 | N51: 3226.2 | O51: 0 | P51: 0 | Q51: 0 | R51: 0 | T51: Vilniaus m. | U51: Alytaus m. Druskininkų m. Panevėžio raj. Šilalės raj. Švenčionių raj. | V51: Vilniaus m. | W51: Alytaus m. Druskininkų m. Panevėžio raj. Šilalės raj. Švenčionių raj.
B52: Telšių raj. | C52: 0.1165867247 | D52: 49 | E52: Telšių raj. | F52: 0.08987896929 | G52: 49 | H52: =IF(F52>0.3, K52/'3. GGbudget'!$I$11/1000*'2. Macro'!$N$38,0) -> 0 | I52: 43441.3 | J52: 42862.3 | K52: 43441.3 | L52: 42352.1 | M52: 0 | N52: 510.2 | O52: 0 | P52: 0 | Q52: 0 | R52: 0 | T52: Vilniaus m. | U52: Alytaus m. Druskininkų m. Panevėžio raj. Šilalės raj. Švenčionių raj. | V52: Vilniaus m. | W52: Alytaus m. Druskininkų m. Panevėžio raj. Šilalės raj. Švenčionių raj.
B53: Trakų raj. | C53: 0.09013059617 | D53: 50 | E53: Trakų raj. | F53: 0.06948342626 | G53: 50 | H53: =IF(F53>0.3, K53/'3. GGbudget'!$I$11/1000*'2. Macro'!$N$38,0) -> 0 | I53: 33583.5 | J53: 34099.3 | K53: 33583.5 | L53: 31341 | M53: 0 | N53: 2758.3 | O53: 0 | P53: 0 | Q53: 0 | R53: 0 | T53: Vilniaus m. | U53: Alytaus m. Druskininkų m. Panevėžio raj. Šilalės raj. Švenčionių raj. | V53: Vilniaus m. | W53: Alytaus m. Druskininkų m. Panevėžio raj. Šilalės raj. Švenčionių raj.
B54: Ukmergės raj. | C54: 0.09955279746 | D54: 51 | E54: Ukmergės raj. | F54: 0.07674718414 | G54: 51 | H54: =IF(F54>0.3, K54/'3. GGbudget'!$I$11/1000*'2. Macro'!$N$38,0) -> 0 | I54: 37094.3 | J54: 39279.6 | K54: 37094.3 | L54: 35537.2 | M54: 0 | N54: 3742.4 | O54: 0 | P54: 0 | Q54: 0 | R54: 0 | T54: Vilniaus m. | U54: Alytaus m. Druskininkų m. Panevėžio raj. Šilalės raj. Švenčionių raj. | V54: Vilniaus m. | W54: Alytaus m. Druskininkų m. Panevėžio raj. Šilalės raj. Švenčionių raj.
B55: Utenos raj. | C55: 0.08839607165 | D55: 52 | E55: Utenos raj. | F55: 0.06814624763 | G55: 52 | H55: =IF(F55>0.3, K55/'3. GGbudget'!$I$11/1000*'2. Macro'!$N$38,0) -> 0 | I55: 32937.2 | J55: 33371 | K55: 32937.2 | L55: 32665 | M55: 0 | N55: 706 | O55: 0 | P55: 0 | Q55: 0 | R55: 0 | T55: Vilniaus m. | U55: Alytaus m. Druskininkų m. Panevėžio raj. Šilalės raj. Švenčionių raj. | V55: Vilniaus m. | W55: Alytaus m. Druskininkų m. Panevėžio raj. Šilalės raj. Švenčionių raj.
B56: Varėnos raj. | C56: 0.06752971212 | D56: 53 | E56: Varėnos raj. | F56: 0.052059966 | G56: 53 | H56: =IF(F56>0.3, K56/'3. GGbudget'!$I$11/1000*'2. Macro'!$N$38,0) -> 0 | I56: 24655.2 | J56: 25454.2 | K56: 25162.2 | L56: 24619 | M56: -507 | N56: 835.2 | O56: 1 | P56: 1 | Q56: 0 | R56: 0 | T56: Vilniaus m. | U56: Alytaus m. Druskininkų m. Panevėžio raj. Šilalės raj. Švenčionių raj. Varėnos raj. | V56: Vilniaus m. | W56: Alytaus m. Druskininkų m. Panevėžio raj. Šilalės raj. Švenčionių raj. Varėnos raj.
B57: Vilkaviškio raj. | C57: 0.08801819597 | D57: 54 | E57: Vilkaviškio raj. | F57: 0.06785493593 | G57: 54 | H57: =IF(F57>0.3, K57/'3. GGbudget'!$I$11/1000*'2. Macro'!$N$38,0) -> 0 | I57: 32796.4 | J57: 33069.5 | K57: 32796.4 | L57: 32424.6 | M57: 0 | N57: 644.9 | O57: 0 | P57: 0 | Q57: 0 | R57: 0 | T57: Vilniaus m. | U57: Alytaus m. Druskininkų m. Panevėžio raj. Šilalės raj. Švenčionių raj. Varėnos raj. | V57: Vilniaus m. | W57: Alytaus m. Druskininkų m. Panevėžio raj. Šilalės raj. Švenčionių raj. Varėnos raj.
B58: Vilniaus raj. | C58: 0.2219131297 | D58: 55 | E58: Vilniaus raj. | F58: 0.1710771396 | G58: 55 | H58: =IF(F58>0.3, K58/'3. GGbudget'!$I$11/1000*'2. Macro'!$N$38,0) -> 0 | I58: 82686.9 | J58: 86456.7 | K58: 82686.9 | L58: 76886.1 | M58: 0 | N58: 9570.6 | O58: 0 | P58: 0 | Q58: 0 | R58: 0 | T58: Vilniaus m. | U58: Alytaus m. Druskininkų m. Panevėžio raj. Šilalės raj. Švenčionių raj. Varėnos raj. | V58: Vilniaus m. | W58: Alytaus m. Druskininkų m. Panevėžio raj. Šilalės raj. Švenčionių raj. Varėnos raj.
B59: Zarasų raj. | C59: 0.04902722262 | D59: 56 | E59: Zarasų raj. | F59: 0.03779603766 | G59: 56 | H59: =IF(F59>0.3, K59/'3. GGbudget'!$I$11/1000*'2. Macro'!$N$38,0) -> 0 | I59: 18268 | J59: 18348.2 | K59: 18268 | L59: 17472 | M59: 0 | N59: 876.2 | O59: 0 | P59: 0 | Q59: 0 | R59: 0 | T59: Vilniaus m. | U59: Alytaus m. Druskininkų m. Panevėžio raj. Šilalės raj. Švenčionių raj. Varėnos raj. | V59: Vilniaus m. | W59: Alytaus m. Druskininkų m. Panevėžio raj. Šilalės raj. Švenčionių raj. Varėnos raj.
B60: Elektrėnų sav. | C60: 0.07203067309 | D60: 57 | E60: Elektrėnų sav. | F60: 0.05552984419 | G60: 57 | H60: =IF(F60>0.3, K60/'3. GGbudget'!$I$11/1000*'2. Macro'!$N$38,0) -> 0 | I60: 26839.3 | J60: 25920.9 | K60: 26839.3 | L60: 25553.1 | M60: 0 | N60: 367.8 | O60: 0 | P60: 0 | Q60: 0 | R60: 0 | T60: Vilniaus m. | U60: Alytaus m. Druskininkų m. Panevėžio raj. Šilalės raj. Švenčionių raj. Varėnos raj. | V60: Vilniaus m. | W60: Alytaus m. Druskininkų m. Panevėžio raj. Šilalės raj. Švenčionių raj. Varėnos raj.
B61: Kalvarijos sav. | C61: 0.02699503073 | D61: 58 | E61: Kalvarijos sav. | F61: 0.02081099324 | G61: 58 | H61: =IF(F61>0.3, K61/'3. GGbudget'!$I$11/1000*'2. Macro'!$N$38,0) -> 0 | I61: 9680.2 | J61: 10249.4 | K61: 10058.6 | L61: 9893 | M61: -378.4 | N61: 356.4 | O61: 1 | P61: 1 | Q61: 0 | R61: 0 | T61: Vilniaus m. | U61: Alytaus m. Druskininkų m. Panevėžio raj. Šilalės raj. Švenčionių raj. Varėnos raj. Kalvarijos sav. | V61: Vilniaus m. | W61: Alytaus m. Druskininkų m. Panevėžio raj. Šilalės raj. Švenčionių raj. Varėnos raj. Kalvarijos sav.
B62: Kazlų Rūdos sav. | C62: 0.02909052315 | D62: 59 | E62: Kazlų Rūdos sav. | F62: 0.02242644902 | G62: 59 | H62: =IF(F62>0.3, K62/'3. GGbudget'!$I$11/1000*'2. Macro'!$N$38,0) -> 0 | I62: 10839.4 | J62: 10951.5 | K62: 10839.4 | L62: 10455.8 | M62: 0 | N62: 495.7 | O62: 0 | P62: 0 | Q62: 0 | R62: 0 | T62: Vilniaus m. | U62: Alytaus m. Druskininkų m. Panevėžio raj. Šilalės raj. Švenčionių raj. Varėnos raj. Kalvarijos sav. | V62: Vilniaus m. | W62: Alytaus m. Druskininkų m. Panevėžio raj. Šilalės raj. Švenčionių raj. Varėnos raj. Kalvarijos sav.
B63: Pagėgių sav. | C63: 0.02881114205 | D63: 60 | E63: Pagėgių sav. | F63: 0.02221106871 | G63: 60 | H63: =IF(F63>0.3, K63/'3. GGbudget'!$I$11/1000*'2. Macro'!$N$38,0) -> 0 | I63: 10735.3 | J63: 10783.7 | K63: 10735.3 | L63: 10294.8 | M63: 0 | N63: 488.9 | O63: 0 | P63: 0 | Q63: 0 | R63: 0 | T63: Vilniaus m. | U63: Alytaus m. Druskininkų m. Panevėžio raj. Šilalės raj. Švenčionių raj. Varėnos raj. Kalvarijos sav. | V63: Vilniaus m. | W63: Alytaus m. Druskininkų m. Panevėžio raj. Šilalės raj. Švenčionių raj. Varėnos raj. Kalvarijos sav.
B64: Rietavo sav. | C64: 0.02431957429 | D64: 61 | E64: Rietavo sav. | F64: 0.01874843193 | G64: 61 | H64: =IF(F64>0.3, K64/'3. GGbudget'!$I$11/1000*'2. Macro'!$N$38,0) -> 0 | I64: 9061.7 | J64: 8751.2 | K64: 9061.7 | L64: 8497.5 | M64: 0 | N64: 253.7 | O64: 0 | P64: 0 | Q64: 0 | R64: 0 | T64: Vilniaus m. | U64: Alytaus m. Druskininkų m. Panevėžio raj. Šilalės raj. Švenčionių raj. Varėnos raj. Kalvarijos sav. | V64: Vilniaus m. | W64: Alytaus m. Druskininkų m. Panevėžio raj. Šilalės raj. Švenčionių raj. Varėnos raj. Kalvarijos sav.
N65: T3 | O65: =SUMIF($H$5:$H$64,">0",O5:O64) -> 1 | P65: =SUMIF($H$5:$H$64,">0",P5:P64) -> 1 | Q65: =SUMIF($H$5:$H$64,">0",Q5:Q64) -> 0 | R65: =SUMIF($H$5:$H$64,">0",R5:R64) -> 0
D66: t = | G66: t = | H66: =FirstYear + 7 -> 2019 | N66: T5 | O66: =SUMIF($H$5:$H$64,"=0",O5:O64) -> 7 | P66: =SUMIF($H$5:$H$64,"=0",P5:P64) -> 7 | Q66: =SUMIF($H$5:$H$64,"=0",Q5:Q64) -> 0 | R66: =SUMIF($H$5:$H$64,"=0",R5:R64) -> 0
D67: YNP(t–1) = | G67: Y*(t–1) = | H67: =+'2. Macro'!N16 -> 37260.93183 | I67: =+'2. Macro'!N15 -> 37379.93722 | O67: =T64 -> Vilniaus m. | P67: =V64 -> Vilniaus m. | Q67: =X64 ->  | R67: =Z64 -> 
D68: YN(t–1) = | G68: YN(t–1) = | H68: ='3. GGbudget'!H6 -> 48333.10878 | I68: ='3. GGbudget'!L6 -> 48494.41885 | O68: =U64 -> Alytaus m. Druskininkų m. Panevėžio raj. Šilalės raj. Švenčionių raj. Varėnos raj. Kalvarijos sav. | P68: =W64 -> Alytaus m. Druskininkų m. Panevėžio raj. Šilalės raj. Švenčionių raj. Varėnos raj. Kalvarijos sav. | Q68: =Y64 ->  | R68: =AA64 -> 
D69: AP(t) = | G69: AP(t) = | H69: ='2. Macro'!O20 -> 2.200185464 | I69: ='2. Macro'!O19 -> 2.727308156
D70: Sources: | G70: Šaltiniai:
D71: Ministry of Finance | G71: Finansų ministerija | H71: FM
D72: Independent Fiscal Institution | G72: Fiskalinė institucija | H72: IFI

Sheet 5. SurplusGG
B1: ↖ atgal į turinį | G1: ↖ back to content
A2: =Kalba -> LT
B3: 5 lentelė. Perteklinio VS taisyklės sąlygos | G3: Table 4. Conditions of the surplus GG sector rule
B4: Nr. | C4: Sąlyga | D4: Formulė | E4: Išvada | G4: No. | H4: Condition | I4: Formula | J4: Conclusion
C5: Institucija, kurios projekcijų pagrindu atliekama analizė | E5: FM | F5: IFI | H5: Institution, projections of which are used for the analysis | J5: MoF | K5: IFI
B6: S1 | C6: VS yra faktiškai perteklinis t metais pagal struktūrinį balansą | D6: SB(t) > 0* | E6: =IF(J6,"Tiesa","Netiesa") -> Netiesa | F6: =IF(K6,"Tiesa","Netiesa") -> Netiesa | G6: C1 | H6: In terms of structural balance GG sector is actually in surplus | I6: SB(t) > 0* | J6: =IF(J19>eps,TRUE,FALSE) -> FALSE | K6: =IF(K19>eps,TRUE,FALSE) -> FALSE
E7: =CONCATENATE(TEXT(ROUND(J19,1),"0,0; –0,0"),IF(J6," ≥ "," < "),"0,1") -> –0,7 < 0,1 | F7: =CONCATENATE(TEXT(K19,"0,0; –0,0"),IF(K6," ≥ "," < "),"0,1") -> –1,3 < 0,1 | J7: =CONCATENATE(TEXT(ROUND(J19,1),"0.0; –0.0"),IF(J6," ≥ "," < "),"0.1") -> –01 < 0.1 | K7: =CONCATENATE(TEXT(ROUND(K19,1),"0.0; –0.0"),IF(K6," ≥ "," < "),"0.1") -> –01 < 0.1
B8: S2 | C8: Faktinio struktūrinio VS balanso rodiklio absoliučioji vertė yra mažesnė negu VLT absoliučioji vertė ir kiekvienais metais mažėja, išskyrus metus, kai produkcijos atotrūkio nuo potencialo rodiklis yra neigiamas | D8: |SB(t)| < |VLT| ir |SB(t)| < |SB(t–1)| ir AP(t) ≥ 0 | E8: =IF(J8,"Tiesa","Netiesa") -> Tiesa | F8: =IF(K8,"Tiesa","Netiesa") -> Netiesa | G8: C2 | H8: Actual structural GG sector balance indicator in absolute value is lower than MTO in absolute value and is annually decreasing, with the exception of the year when the output gap is negative | I8: |SB(t)| < |MTO| and |SB(t)| < |SB(t–1)| and OG(t) ≥ 0 | J8: =IF((J22>=-eps)*(ABS(J19)+eps<ABS($J$21))*(ABS(J19)+0.1<ABS(J20)),TRUE,FALSE) -> TRUE | K8: =IF((K22>=-eps)*(ABS(K19)+eps<ABS($J$21))*(ABS(K19)+0.1<ABS(K20)),TRUE,FALSE) -> FALSE
E9: =CONCATENATE(TEXT(ROUND(ABS(E19),1),"0,0; –0,0"),IF(ABS(E19)+eps<ABS($E$21)," < "," ≥ "),TEXT(ROUND(ABS(E21),1),"0,0; –0,0")," ir ",TEXT(ROUND(ABS(E19),1),"0,0; –0,0"),IF(ABS(E19)+0.1<ABS(E20)," < "," ≥ "),TEXT(ROUND(ABS(E20),1),"0,0; –0,0")," ir ",TEXT(ROUND(E22,1),"0,0; –0,0"),IF(E22<-eps," < "," ≥ "),"0,0") -> 0,7 < 1,0 ir 0,7 < 1,4 ir 2,2 ≥ 0,0 | F9: =CONCATENATE(TEXT(ROUND(ABS(F19),1),"0,0; –0,0"),IF(ABS(F19)+eps<ABS($E$21)," < "," ≥ "),TEXT(ROUND(ABS(E21),1),"0,0; –0,0")," ir ",TEXT(ROUND(ABS(F19),1),"0,0; –0,0"),IF(ABS(F19)+0.1<ABS(F20)," < "," ≥ "),TEXT(ROUND(ABS(F20),1),"0,0; –0,0")," ir ",TEXT(ROUND(F22,1),"0,0; –0,0"),IF(F22<-eps," < "," ≥ "),"0,0") -> 1,3 ≥ 1,0 ir 1,3 < 1,4 ir 2,7 ≥ 0,0 | J9: =CONCATENATE(TEXT(ROUND(ABS(J19),1),"0.0; –0.0"),IF(ABS(J19)+eps<ABS($J$21)," < "," ≥ "),TEXT(ROUND(ABS($J$21),1),"0.0; –0.0")," and ",TEXT(ROUND(ABS(J19),1),"0.0; –0.0"),IF(ABS(J19)+0.1<ABS(J20)," < "," ≥ "),TEXT(ROUND(ABS(J20),1),"0.0; –0.0")," and ",TEXT(ROUND(J22,1),"0.0; –0.0"),IF(J22<-eps," < "," ≥ "),"0.0") -> 01 < 01 and 01 < 01 and 02 ≥ 0.0 | K9: =CONCATENATE(TEXT(ROUND(ABS(K19),1),"0.0; –0.0"),IF(ABS(K19)+eps<ABS($J$21)," < "," ≥ "),TEXT(ROUND(ABS($J$21),1),"0.0; –0.0")," and ",TEXT(ROUND(ABS(K19),1),"0.0; –0.0"),IF(ABS(K19)+0.1<ABS(K20)," < "," ≥ "),TEXT(ROUND(ABS(K20),1),"0.0; –0.0")," and ",TEXT(ROUND(K22,1),"0.0; –0.0"),IF(K22<-eps," < "," ≥ "),"0.0") -> 01 ≥ 01 and 01 < 01 and 03 ≥ 0.0
B10: S3 | C10: Faktinio struktūrinio VS balanso rodiklio absoliučioji vertė yra mažesnė negu VLT absoliučioji vertė tais metais, kai produkcijos atotrūkio nuo potencialo rodiklis yra neigiamas | D10: |SB(t)| < |VLT| ir AP(t) < 0 | E10: =IF(J10,"Tiesa","Netiesa") -> Netiesa | F10: =IF(K10,"Tiesa","Netiesa") -> Netiesa | G10: C3 | H10: Actual structural GG sector balance indicator in absolute value is lower than the MTO in absolute value in the year when the output gap is negative | I10: |SB(t)| < |MTO| and OG(t) < 0 | J10: =IF((J22<-eps)*(ABS(J19)+eps<ABS($J$21)),TRUE,FALSE) -> FALSE | K10: =IF((K22<-eps)*(ABS(K19)+eps<ABS($J$21)),TRUE,FALSE) -> FALSE
E11: =CONCATENATE(TEXT(ROUND(ABS(E19),1),"0,0; –0,0"),IF(ABS(E19)+eps<ABS($E$21)," < "," ≥ "),TEXT(ROUND(ABS($E$21),1),"0,0; –0,0")," ir ",TEXT(ROUND(E22,1),"0,0; –0,0"),IF(E22<-eps," < "," ≥ "),"0,0") -> 0,7 < 1,0 ir 2,2 ≥ 0,0 | F11: =CONCATENATE(TEXT(ROUND(ABS(F19),1),"0,0; –0,0"),IF(ABS(F19)+eps<ABS($E$21)," < "," ≥ "),TEXT(ROUND(ABS($E$21),1),"0,0; –0,0")," ir ",TEXT(ROUND(F22,1),"0,0; –0,0"),IF(F22<-eps," < "," ≥ "),"0,0") -> 1,3 ≥ 1,0 ir 2,7 ≥ 0,0 | J11: =CONCATENATE(TEXT(ROUND(ABS(J19),1),"0.0; –0.0"),IF(ABS(J19)+eps<ABS($J$21)," < "," ≥ "),TEXT(ROUND(ABS($J$21),1),"0.0; –0.0")," and ",TEXT(ROUND(J22,1),"0.0; –0.0"),IF(J22<-eps," < "," ≥ "),"0.0") -> 01 < 01 and 02 ≥ 0.0 | K11: =CONCATENATE(TEXT(ROUND(ABS(K19),1),"0.0; –0.0"),IF(ABS(K19)+eps<ABS($J$21)," < "," ≥ "),TEXT(ROUND(ABS($J$21),1),"0.0; –0.0")," and ",TEXT(ROUND(K22,1),"0.0; –0.0"),IF(K22<-eps," < "," ≥ "),"0.0") -> 01 ≥ 01 and 03 ≥ 0.0
B12: S4 | C12: Faktinio struktūrinio VS balanso rodiklio postūmio VLT link absoliučioji vertė yra ne mažesnė negu struktūrinio postūmio užduoties absoliučioji vertė | D12: SPU(t) > 0 ir SB(t) ≥ SB(t–1)+SPU(t) | E12: =IF(J12,"Tiesa","Netiesa") -> Netiesa | F12: =IF(K12,"Tiesa","Netiesa") -> Netiesa | G12: C4 | H12: Actual structural GG sector balance indicator adjustment towards the MTO in absolute value is not lower than the structural adjustment target in absolute value. | I12: SAT(t) > 0 and SB(t) ≥ SB(t–1)+SAT(t) | J12: =IF(($J$23>0)*(J19>=J20+$J$23),TRUE,FALSE) -> FALSE | K12: =IF(($J$23>0)*(K19>=K20+$J$23),TRUE,FALSE) -> FALSE
E13: =IF($E$23=0,"Netaikoma",CONCATENATE(TEXT(ROUND(E19,1),"0,0; –0,0"),IF(E19>=E20+$E$23," ≥ "," < "),TEXT(ROUND(E20,1),"0,0; –0,0")," + ",TEXT(ROUND($E$23,1),"0,0; –0,0")," = ",TEXT(ROUND(J20+$E$23,1),"0,0; –0,0"))) -> Netaikoma | F13: =IF($E$23=0,"Netaikoma",CONCATENATE(TEXT(ROUND(F19,1),"0,0; –0,0"),IF(F19>=F20+$E$23," ≥ "," < "),TEXT(ROUND(F20,1),"0,0; –0,0")," + ",TEXT(ROUND($E$23,1),"0,0; –0,0")," = ",TEXT(ROUND(K20+$E$23,1),"0,0; –0,0"))) -> Netaikoma | J13: =IF($J$23=0,"Not aplicaple",CONCATENATE(TEXT(ROUND(J19,1),"0.0; –0.0"),IF(J19>=J20+$J$23," ≥ "," < "),TEXT(ROUND(J20,1),"0.0; –0.0")," + ",TEXT(ROUND($J$23,1),"0.0; –0.0")," = ",TEXT(ROUND(J20+$J$23,1),"0.0; –0.0"))) -> Not aplicaple | K13: =IF($J$23=0,"Not aplicaple",CONCATENATE(TEXT(ROUND(K19,1),"0.0; –0.0"),IF(K19>=K20+$J$23," ≥ "," < "),TEXT(ROUND(K20,1),"0.0; –0.0")," + ",TEXT(ROUND($J$23,1),"0.0; –0.0")," = ",TEXT(ROUND(K20+$J$23,1),"0.0; –0.0"))) -> Not aplicaple
B14: S | C14: t metais, išskyrus metus, kuriais susidaro išskirtinės aplinkybės, turi būti tenkinama bent viena iš S1–S4 sąlygų | E14: =IF(OR(J6,J8,J10,J12),"Taip","Ne") -> Taip | F14: =IF(OR(K6,K8,K10,K12),"Taip","Ne") -> Ne | G14: C | H14: At year t, with the exception of the year of exceptional circumstances, at least one of the C1–C4 conditions is satisfied | J14: =IF(E31>0,"Yes","No") -> Yes | K14: =IF(F31>0,"Yes","No") -> No
E15: =IF(J14="Yes",IF(E31=1,CONCATENATE("Tenkinama ",I27,I28,I29,I30," sąlyga"),CONCATENATE("Tenkinamos ", IF(E27=1,CONCATENATE(I27," "),""),IF(E28=1,CONCATENATE(I28," "),""),IF(E29=1,CONCATENATE(I29," "),""),IF(E30=1,CONCATENATE(I30," "),""),"sąlygos")),"Netenkinama nei viena iš sąlygų") -> Tenkinama S2 sąlyga | F15: =IF(K14="Yes",IF(F31=1,CONCATENATE("Tenkinama ",H27,H28,H29,H30," sąlyga"),CONCATENATE("Tenkinamos ", IF(F27=1,CONCATENATE(H27," "),""),IF(F28=1,CONCATENATE(H28," "),""),IF(F29=1,CONCATENATE(H29," "),""),IF(F30=1,CONCATENATE(H30," "),""),"sąlygos")),"Netenkinama nei viena iš sąlygų") -> Netenkinama nei viena iš sąlygų | J15: =IF(J14="Yes",IF(E31=1,CONCATENATE("Condition ",J27,J28,J29,J30," is valid"),CONCATENATE("Conditions ", IF(E27=1,CONCATENATE(J27," "),""),IF(E28=1,CONCATENATE(J28," "),""),IF(E29=1,CONCATENATE(J29," "),""),IF(E30=1,CONCATENATE(J30," "),""),"are valid")),"None of the conditions is valid") -> Condition C2 is valid | K15: =IF(K14="Yes",IF(F31=1,CONCATENATE("Condition ",K27,K28,K29,K30," is valid"),CONCATENATE("Conditions ", IF(F27=1,CONCATENATE(K27," "),""),IF(F28=1,CONCATENATE(K28," "),""),IF(F29=1,CONCATENATE(K29," "),""),IF(F30=1,CONCATENATE(K30," "),""),"are valid")),"None of the conditions is valid") -> None of the conditions is valid
C16: * nelygybės ženklas yra griežtas, jei skirtumas tarp lyginamų pusių po apvalinimo sudaro bent 0,1, kitaip ženklas interpretuojamas kaip = | H16: * inequality sign is strict, if a difference between both compared sides after rounding is at least 0,1, else the sign is interpreted as =
C17: Šaltinis: KĮ 3 straipsnis 1 dalis | H17: Source: CL Article 3(1)
D18: t = | E18: =FirstYear+8 -> 2020 | I18: t = | J18: =E18 -> 2020
D19: SB(t) = | E19: ='3. GGbudget'!G19 -> -0.6757598129 | F19: ='3. GGbudget'!K19 -> -1.30425477 | I19: SB(t) = | J19: =E19 -> -0.6757598129 | K19: =F19 -> -1.30425477
D20: SB(t–1) = | E20: ='3. GGbudget'!F19 -> -1.423250196 | F20: ='3. GGbudget'!J19 -> -1.427278907 | I20: SB(t–1) = | J20: -1.423250196 | K20: =F20 -> -1.427278907
D21: VLT = | E21: ='3. GGbudget'!F22 -> -1 | I21: MTO = | J21: -1
D22: AP(t) = | E22: ='2. Macro'!O20 -> 2.200185464 | F22: ='2. Macro'!O19 -> 2.727308156 | I22: OG(t) = | J22: 2.200185464 | K22: =F22 -> 2.727308156
D23: SPU(t) = | E23: ='3. GGbudget'!F23 -> 0 | I23: SAT(t) = | J23: 0
D24: Šaltiniai: | I24: Sources:
D25: Finansų ministerija | E25: FM | I25: Ministry of Finance | J25: MoF
D26: Fiskalinė institucija | E26: IFI | I26: Independent Fiscal Institution | J26: IFI
C27: S1 | D27: C1 | E27: =J6*1 -> 0 | F27: =(K6)*1 -> 0 | G27: =IF(#REF!=1,$C27,"") ->  | H27: =IF(F27=1,$C27,"") ->  | I27: =IF(E27=1,$C27,"") ->  | J27: =IF(E27=1,$D27,"") -> 
C28: S2 | D28: C2 | E28: =J8*1 -> 1 | F28: =(K8)*1 -> 0 | G28: =IF(#REF!=1,$C28,"") ->  | H28: =IF(F28=1,$C28,"") ->  | I28: =IF(E28=1,$C28,"") -> S2 | J28: C2
C29: S3 | D29: C3 | E29: =J10*1 -> 0 | F29: =(K10)*1 -> 0 | G29: =IF(#REF!=1,$C29,"") ->  | H29: =IF(F29=1,$C29,"") ->  | I29: =IF(E29=1,$C29,"") -> 
C30: S4 | D30: C4 | E30: =J12*1 -> 0 | F30: =(K12)*1 -> 0 | G30: =IF(#REF!=1,$C30,"") ->  | H30: =IF(F30=1,$C30,"") ->  | I30: =IF(E30=1,$C30,"") -> 
E31: =SUM(E27:E30) -> 1 | F31: =SUM(F27:F30) -> 0

Sheet 6. GGexpenditure
B1: ↖ atgal į turinį | H1: ↖ back to content
A2: =Kalba -> LT
B3: 6 lentelė. VS išlaidų augimo ribojimo taisyklė | H3: Table 5. GG expenditure growth limiting rule
B4: Nr. | C4: VS išlaidų augimo ribojimo taisyklės netaikymo aplinkybės | D4: Formulė | F4: Išvada | H4: No. | I4: GG expenditure growh limiting rule application escape clause | J4: Formula | L4: Conclusion
C5: Institucija, kurios projekcijų pagrindu atliekama analizė | F5: FM | G5: IFI | I5: Institution, projections of which are used for the analysis | L5: MoF | M5: IFI
B6: A1 | C6: Pagal 4 paskutinius metų ketvirčius apskaičiuotas Lietuvos BVP to meto kainomis augimas yra mažesnis negu daugiametis ES BVP to meto kainomis augimas, padidintas 2 procentiniais punktais | F6: =IF(L6,"Tiesa","Netiesa") -> Netiesa | G6: =IF(M6,"Tiesa","Netiesa") -> Netiesa | H6: E1 | I6: Lithuanian GDP at current prices calculated on the basis of 4 last quarters of the year grows at a slower pace than the multi-annual growth of the GDP of the EU at current prices increased by 2 percentage points | L6: =IF('6. GGexpenditure'!L44+eps<AVERAGE('2. Macro'!H33:L33)+2,TRUE,FALSE) -> FALSE | M6: =IF('6. GGexpenditure'!M44+eps<AVERAGE('2. Macro'!I33:M33)+2,TRUE,FALSE) -> FALSE
F7: =CONCATENATE(TEXT(ROUND('6. GGexpenditure'!L44,1),"0,0;–0,0"),IF(L6," < "," ≥ "),TEXT(ROUND(AVERAGE('2. Macro'!I33:M33)+2,1),"0,0;–0,0")) -> 7,4 ≥ 5,2 | G7: =CONCATENATE(TEXT(ROUND('6. GGexpenditure'!M44,1),"0,0;–0,0"),IF(M6," < "," ≥ "),TEXT(ROUND(AVERAGE('2. Macro'!I33:M33)+2,1),"0,0;–0,0")) -> 7,3 ≥ 5,2 | L7: =CONCATENATE(TEXT(ROUND('6. GGexpenditure'!L44,1),"0.0;–0.0"),IF(L6," < "," ≥ "),TEXT(ROUND(AVERAGE('2. Macro'!I33:M33)+2,1),"0.0;–0.0")) -> 07 ≥ 05 | M7: =CONCATENATE(TEXT(ROUND('6. GGexpenditure'!M44,1),"0.0;–0.0"),IF(M6," < "," ≥ "),TEXT(ROUND(AVERAGE('2. Macro'!J33:N33)+2,1),"0.0;–0.0")) -> 07 ≥ 05
B8: A2 | C8: Numatomas VS balanso rodiklio postūmis yra teigiamas ir sudaro bent 1,0 procentinį punktą BVP | D8: B(t) ≥ B(t–1)+1 | F8: =IF(L8,"Tiesa","Netiesa") -> Netiesa | G8: =IF(M8,"Tiesa","Netiesa") -> Netiesa | H8: E2 | I8: Projected GG sector balance indicator adjustment is positive and makes up at least 1.0 percentage point of GDP | J8: B(t) ≥ B(t–1)+1 | L8: =IF('3. GGbudget'!G7>='3. GGbudget'!F7+1,TRUE,FALSE) -> FALSE | M8: =IF('3. GGbudget'!K7>='3. GGbudget'!J7+1,TRUE,FALSE) -> FALSE
F9: =CONCATENATE(TEXT(ROUND('3. GGbudget'!G7,1),"0,0;–0,0"),IF(L8," ≥ "," < "),TEXT(ROUND('3. GGbudget'!F7+1,1),"0,0;–0,0")) -> 0,2 < 1,1 | G9: =CONCATENATE(TEXT(ROUND('3. GGbudget'!K7,1),"0,0;–0,0"),IF(M8," ≥ "," < "),TEXT(ROUND('3. GGbudget'!J7+1,1),"0,0;–0,0")) -> –0,2 < 1,0 | L9: =CONCATENATE(TEXT(ROUND('3. GGbudget'!G7,1),"0.0;–0.0"),IF(L8," ≥ "," < "),TEXT(ROUND('3. GGbudget'!F7+1,1),"0.0;–0.0")) -> 00 < 01 | M9: =CONCATENATE(TEXT(ROUND('3. GGbudget'!K7,1),"0.0;–0.0"),IF(M8," ≥ "," < "),TEXT(ROUND('3. GGbudget'!J7+1,1),"0.0;–0.0")) -> –00 < 01
B10: A2* | C10: A2, kai numatomas einamųjų metų VS balanso rodiklio teigiamas postūmis nėra mažesnis už suplanuotą einamųjų kalendorinių metų VS balanso rodiklio teigiamą postūmį daugiau kaip 0,5 procentinio punkto BVP to meto kainomis | D10: B(t) ≥ B(t–1)+1 ir B(t–1)–B(t–2) ≥ BP(t–1)–BP(t–2)+0,5 | F10: =IF(L10,"Tiesa","Netiesa") -> Netiesa | G10: =IF(M10,"Tiesa","Netiesa") -> Netiesa | H10: E2* | I10: E2, when projected current year GG sector balance indicator positive adjustment is not greater than planned current year GG positive adjustment more than by 0,5 % of GDP at current prices | J10: B(t) ≥ B(t–1)+1 and B(t–1)–B(t–2) ≥ BP(t–1)–BP(t–2)+0,5 | L10: =IF(('3. GGbudget'!G7>='3. GGbudget'!F7+1)*(L38-L39>=0.5),TRUE,FALSE) -> FALSE | M10: =IF(('3. GGbudget'!K7>='3. GGbudget'!J7+1)*(M38-M39>=0.5),TRUE,FALSE) -> FALSE
F11: =CONCATENATE(TEXT(ROUND('3. GGbudget'!G7,1),"0,0;–0,0"),IF(('3. GGbudget'!G7>='3. GGbudget'!F7+1)," ≥ "," < "),TEXT(ROUND('3. GGbudget'!F7+1,1),"0,0;–0,0")," ir ",TEXT(ROUND(F38,1),"0,0;–0,0"),IF(F38-F39>=0.5," ≥ "," < "),TEXT(ROUND(F39+0.5,1),"0,0;–0,0")) -> 0,2 < 1,1 ir –0,5 < –0,2 | G11: =CONCATENATE(TEXT(ROUND('3. GGbudget'!K7,1),"0,0;–0,0"),IF(('3. GGbudget'!K7>='3. GGbudget'!J7+1)," ≥ "," < "),TEXT(ROUND('3. GGbudget'!J7+1,1),"0,0;–0,0")," ir ",TEXT(ROUND(G38,1),"0,0;–0,0"),IF(G38-G39>=0.5," ≥ "," < "),TEXT(ROUND(G39+0.5,1),"0,0;–0,0")) -> –0,2 < 1,0 ir –0,6 < –0,2 | L11: =CONCATENATE(TEXT(ROUND('3. GGbudget'!G7,1),"0.0;–0.0"),IF(('3. GGbudget'!G7>='3. GGbudget'!F7+1)," ≥ "," < "),TEXT(ROUND('3. GGbudget'!F7+1,1),"0.0;–0.0")," and ",TEXT(ROUND(L38,1),"0.0;–0.0"),IF(L38-L39>=0.5," ≥ "," < "),TEXT(ROUND(L39+0.5,1),"0.0;–0.0")) -> 00 < 01 and –01 < –00 | M11: =CONCATENATE(TEXT(ROUND('3. GGbudget'!K7,1),"0.0;–0.0"),IF(('3. GGbudget'!K7>='3. GGbudget'!J7+1)," ≥ "," < "),TEXT(ROUND('3. GGbudget'!J7+1,1),"0.0;–0.0")," and ",TEXT(ROUND(M38,1),"0.0;–0.0"),IF(M38-M39>=0.5," ≥ "," < "),TEXT(ROUND(M39+0.5,1),"0.0;–0.0")) -> –00 < 01 and –01 < –00
B12: A3 | C12: Ne mažiau kaip penkerių iš eilės einančių metų VS balanso rodiklio aritmetinis vidurkis yra perteklius, ne mažesnis negu 0,1 procento BVP | F12: =IF(L12,"Tiesa","Netiesa") -> Tiesa | G12: =IF(M12,"Tiesa","Netiesa") -> Tiesa | H12: E3 | I12: The arithmetic average of GG sector balance indicator of at least five successive years is in surplus, at least 0.1 % of GDP | L12: =IF(ROUND(AVERAGE('2. Macro'!J37:N37),1)>=0.1,TRUE,FALSE) -> TRUE | M12: =IF(ROUND(AVERAGE('2. Macro'!J36:N36),1)>=0.1,TRUE,FALSE) -> TRUE
F13: =CONCATENATE(TEXT(ROUND(AVERAGE('2. Macro'!J37:N37),1),"0,0;–0,0"),IF(L12," ≥ "," < "),"0,1") -> 0,2 ≥ 0,1 | G13: =CONCATENATE(TEXT(ROUND(AVERAGE('2. Macro'!J36:N36),1),"0,0;–0,0"),IF(M12," ≥ "," < "),"0,1") -> 0,2 ≥ 0,1 | L13: =CONCATENATE(TEXT(ROUND(AVERAGE('2. Macro'!J37:N37),1),"0.0;–0.0"),IF(L12," ≥ "," < "),"0.1") -> 00 ≥ 0.1 | M13: =CONCATENATE(TEXT(ROUND(AVERAGE('2. Macro'!J36:N36),1),"0.0;–0.0"),IF(M12," ≥ "," < "),"0.1") -> 00 ≥ 0.1
B14: A4 | C14: Keičiant einamųjų metų bet kurio iš VS priskiriamų biudžetų, kurių kiekvieno atskirai planuojami asignavimai viršija 3 procentus BVP to meto kainomis, pajamas ar išlaidas, pakeistas VS balansas nepablogės, palyginti su buvusiu prieš keitimą | D14: B**(t–1) ≥ B(t–1) | F14: Netaikoma | G14: =F14 -> Netaikoma | H14: E4 | I14: If planned current year GG sector budgets, the planned appropriations of each of which exceed 3 % of GDP at current prices, are subject to amendment, the adjusted aggregate balances of the GG budgets is not worse than the one before the amendment | J14: B*(t–1) ≥ B(t–1) | L14: Not applied | M14: =L14 -> Not applied
B15: A5 | C15: Pagal Vyriausybės arba jos įgaliotos institucijos viešai paskelbtą ekonominės raidos scenarijų, dėl kurio tvirtinimo kontrolės institucija paskelbė išvadą, apskaičiuotas produkcijos atotrūkis nuo potencialo planuojamais metais yra neigiamas | D15: AP(t) < 0 | F15: =IF(L15,"Tiesa","Netiesa") -> Netiesa | G15: =IF(M15,"Tiesa","Netiesa") -> Netiesa | H15: E5 | I15: The output gap for the planned year calculated on the basis of the economic development scenario, which is made public by the Government or its authorised institution and in regard to which the monitoring authority published its conclusion, is negative | J15: OG(t) < 0 | L15: =IF(L45+eps<0,TRUE,FALSE) -> FALSE | M15: =IF(M45+eps<0,TRUE,FALSE) -> FALSE
F16: =CONCATENATE(TEXT(ROUND(L45,1),"0,0;–0,0"),IF(L15," < "," ≥ "),FIXED(0,1)) -> 2,2 ≥ 0,0 | G16: =CONCATENATE(TEXT(ROUND(M45,1),"0,0;–0,0"),IF(M15," < "," ≥ "),FIXED(0,1)) -> 2,7 ≥ 0,0 | L16: =CONCATENATE(TEXT(ROUND(L45,1),"0.0;–0.0"),IF(L15," < "," ≥ "),FIXED(0,1)) -> 02 ≥ 0,0 | M16: =CONCATENATE(TEXT(ROUND(M45,1),"0.0;–0.0"),IF(M15," < "," ≥ "),FIXED(0,1)) -> 03 ≥ 0,0
B17: A5* | C17: A5, o prognozuojama vidutinė metinė infliacija, apskaičiuojama pagal suderintą vartotojų kainų indeksą, neviršija 3 procentų | D17: AP(t) < 0 ir ΔSVKI(t) ≤ 3 | F17: =IF(L17,"Tiesa","Netiesa") -> Netiesa | G17: =IF(M17,"Tiesa","Netiesa") -> Netiesa | H17: E5* | I17: E5, and project annual inflation, estimated by harmonised index of consumer prices is not greater that 3 % | J17: OG(t) < 0 and ΔHICP(t) ≤ 3 | L17: =IF((F45+eps<0)*($F$46<=3),TRUE,FALSE) -> FALSE | M17: =IF((G45+eps<0)*($F$46<=3),TRUE,FALSE) -> FALSE
F18: =CONCATENATE(TEXT(ROUND(L45,1),"0,0;–0,0"),IF(L15," < "," ≥ "),FIXED(0,1), " ir ", TEXT(ROUND($L$46,1),"0,0;–0,0"),IF(L46<=3," ≤ "," > "), FIXED(3,1)) -> 2,2 ≥ 0,0 ir 2,3 ≤ 3,0 | G18: =CONCATENATE(TEXT(ROUND(M45,1),"0,0;–0,0"),IF(M15," < "," ≥ "),FIXED(0,1), " ir ", TEXT(ROUND($L$46,1),"0,0;–0,0"),IF(L46<=3," ≤ "," > "), FIXED(3,1)) -> 2,7 ≥ 0,0 ir 2,3 ≤ 3,0 | L18: =CONCATENATE(TEXT(ROUND(L45,1),"0.0;–0.0"),IF($L$15," < "," ≥ "),FIXED(0,1), " and ", TEXT(ROUND($L$46,1),"0.0;–0.0"),IF(L46<=3," ≤ "," > "), FIXED(3,1)) -> 02 ≥ 0,0 and 02 ≤ 3,0 | M18: =CONCATENATE(TEXT(ROUND(M45,1),"0.0;–0.0"),IF($L$15," < "," ≥ "),FIXED(0,1), " and ", TEXT(ROUND($L$46,1),"0.0;–0.0"),IF(L46<=3," ≤ "," > "), FIXED(3,1)) -> 03 ≥ 0,0 and 02 ≤ 3,0
B19: A | C19: t metais, VS išlaidų augimo ribojimo taisyklė netaikoma, kai susidaro bent viena iš A1–A5 aplinkybių | F19: =IF(L19="yes","Taip","Ne") -> Taip | G19: =IF(M19="yes","Taip","Ne") -> Taip | H19: E | I19: at year t the GG expenditure growth limiting rule is not applied when at least one of the E1–E5 escape clauses emerges | L19: =+IF((OR(L6=TRUE,L8=TRUE,L12=TRUE,L14=TRUE,L15=TRUE)),"Yes","No") -> Yes | M19: =+IF((OR(M6=TRUE,M8=TRUE,M12=TRUE,M14=TRUE,M15=TRUE)),"Yes","No") -> Yes
F20: =IF(F19="TAIP",IF(F60=1,CONCATENATE("Susidaro ",H55,H56,H57,H58,H59," aplinkybė"),CONCATENATE("Susidaro ", IF(F55=1,CONCATENATE(H55," "),""),IF(F56=1,CONCATENATE(H56," "),""),IF(F57=1,CONCATENATE(H57," "),""),IF(F58=1,CONCATENATE(H58," "),""),IF(F59=1,CONCATENATE(H59," "),""),"aplinkybės")),"Išimčių nėra") -> Susidaro A3 aplinkybė | G20: =IF(G19="TAIP",IF(G60=1,CONCATENATE("Susidaro ",I55,I56,I57,I58,I59," aplinkybė"),CONCATENATE("Susidaro ", IF(G55=1,CONCATENATE(I55," "),""),IF(G56=1,CONCATENATE(I56," "),""),IF(G57=1,CONCATENATE(I57," "),""),IF(G58=1,CONCATENATE(I58," "),""),IF(G59=1,CONCATENATE(I59," "),""),"aplinkybės")),"Išimčių nėra") -> Susidaro A3 aplinkybė | L20: =IF(L19="YES",IF(F60=1,CONCATENATE("Escape clause ",J55,J56,J57,J58,J59," emerges"),CONCATENATE("Escape clauses ", IF(F55=1,CONCATENATE(J55," "),""),IF(F56=1,CONCATENATE(J56," "),""),IF(F57=1,CONCATENATE(J57," "),""),IF(F58=1,CONCATENATE(J58," "),""),IF(F59=1,CONCATENATE(J59," "),""),"emerge") ),"There is no escape clauses") -> Escape clause E3 emerges | M20: =IF(M19="YES",IF(G60=1,CONCATENATE("Escape clause ",K55,K56,K57,K58,K59," emerges"),CONCATENATE("Escape clauses ", IF(G55=1,CONCATENATE(K55," "),""),IF(G56=1,CONCATENATE(K56," "),""),IF(G57=1,CONCATENATE(K57," "),""),IF(G58=1,CONCATENATE(K58," "),""),IF(G59=1,CONCATENATE(K59," "),""),"emerge") ),"There is no escape clauses") -> Escape clause E3 emerges
B21: Nr. | C21: Taisyklė | D21: Formulė | F21: Išvada | H21: No. | I21: Rule | J21: Formula | L21: Conclusion
B22: T1 | C22: Metais t rengiant, tvirtinant ir keičiant VS priskiriamų biudžetų, kurių kiekvieno atskirai planuojami asignavimai viršija 3 proc. BVP to meto kainomis (CV, VSDF ir PSDF išlaidos), patvirtinimo įstatymų arba šių įstatymų pakeitimo įstatymų projektus, vadovaujamasi nuostata, kad tuo atveju, kai paskutinių penkerių pasibaigusių metų VS balanso rodiklių aritmetinis vidurkis yra neigiamas, šių biudžetų asignavimų (išskyrus ES finansinės paramos lėšas) visumos augimas turi būti ne didesnis negu 0,5 potencialaus BVP to meto kainomis daugiamečio augimo vidurkio | D22: Jei | F22: =IF((L19="YES"),"",IF(L22,"TIESA","NETIESA")) ->  | G22: =IF((M19="YES"),"",IF(M22,"TIESA","NETIESA")) ->  | H22: R1 | I22: At year t the preparation, approval and amendment of draft laws or their draft amending laws on approval of the budgets attributable to the GG sector the planned appropriations of each of which exceed 3 % of GDP (CG and SSF expenditure) at current prices shall rely on the provision that, in case where arithmetic average of GG sector balance indicators of the past five complete years is negative, the aggregate growth of the appropriations of these budgets (net of EU financial support) is not higher than 0.5 % of the average multi-annual growth rate of the potential GDP at current prices | J22: If | L22: =IF((L19="YES"),"",IF(AVERAGE('2. Macro'!I37:M37)+eps<0,TRUE,FALSE)) ->  | M22: =IF((M19="YES"),"",IF(AVERAGE('2. Macro'!I36:M36)+eps<0,TRUE,FALSE)) -> 
F23: =IF((L19="YES"),"",CONCATENATE(TEXT(ROUND(AVERAGE('2. Macro'!I37:M37),1),"0,0;–0,0"),IF(L12," ≥ "," < "),FIXED(0,1))) ->  | G23: =IF((M19="YES"),"",CONCATENATE(TEXT(ROUND(AVERAGE('2. Macro'!I37:M37),1),"0,0;–0,0"),IF(M12," ≥ "," < "),FIXED(0,1))) ->  | L23: =IF((L19="YES"),"",CONCATENATE(TEXT(ROUND(AVERAGE('2. Macro'!I37:M37),1),"0.0;–0.0"),IF(L12," ≥ "," < "),FIXED(0,1))) ->  | M23: =IF((M19="YES"),"",CONCATENATE(TEXT(ROUND(AVERAGE('2. Macro'!I36:M36),1),"0.0;–0.0"),IF(M12," ≥ "," < "),FIXED(0,1))) -> 
F24: =L24 ->  | G24: =M24 ->  | L24: =IF(L19="YES","",POWER('2. Macro'!Q16/'2. Macro'!G16,0.1)*POWER(PRODUCT(F40:F43),0.25)-1) ->  | M24: =IF(M19="YES","",POWER('2. Macro'!Q15/'2. Macro'!G15,0.1)*POWER(PRODUCT(F40:F43),0.25)-1) -> 
F25: =IF(F19="TAIP","Netaikoma,",IF(L25,"Tiesa","Netiesa")) -> Netaikoma, | G25: =IF(G19="TAIP","Netaikoma,",IF(M25,"Tiesa","Netiesa")) -> Netaikoma, | L25: =IF(L19="YES","Not applied,",IF($F$32-$F$34<=($F$33-$F$35)*(1+0.5*L24),TRUE,FALSE)) -> Not applied, | M25: =IF(M19="YES","Not applied,",IF($G$32-$F$34<=($G$33-$F$35)*(1+0.5*M24),TRUE,FALSE)) -> Not applied,
F26: =IF(L19="YES"," nes susidarė viena iš KĮ numatytų netaikymo aplinkybių",CONCATENATE(ROUND(($F$32-F34)/($F$33-F35),3),IF(L25," ≤ "," > "), ROUND(1+0.5*L24,3))) -> nes susidarė viena iš KĮ numatytų netaikymo aplinkybių | G26: =IF(M19="YES"," nes susidarė viena iš KĮ numatytų netaikymo aplinkybių",CONCATENATE(ROUND(($G$32-F34)/($G$33-F35),3),IF(M25," ≤ "," > "), ROUND(1+0.5*M24,3))) -> nes susidarė viena iš KĮ numatytų netaikymo aplinkybių | L26: =IF(L19="YES"," since one of CL escape clauses emerged",CONCATENATE(ROUND(($F$32-F34)/($F$33-F35),3),IF(L25," ≤ "," > "), ROUND(1+0.5*L24,3))) -> since one of CL escape clauses emerged | M26: =IF(M19="YES"," since one of CL escape clauses emerged",CONCATENATE(ROUND(($G$32-F34)/($G$33-F35),3),IF(M25," ≤ "," > "), ROUND(1+0.5*M24,3))) -> since one of CL escape clauses emerged
B27: T2 | C27: Pagal FDĮ panaši į T1 išlaidų ribojimo taisyklė turi būti pritaikyta visam konsoliduotam VS biudžetui (be Europos Sąjungos finansinės paramos lėšų) | F27: =IF(F19="TAIP","Netaikoma,",IF(L27,"Tiesa","Netiesa")) -> Netaikoma, | G27: =IF(G19="TAIP","Netaikoma,",IF(M27,"Tiesa","Netiesa")) -> Netaikoma, | H27: R2 | I27: According to FDL a similar to R1 GG consolidated budget's expenditure growth rule is applied (net of EU financial support) | L27: =IF(L19="YES","Not applied,",IF($F$36-$F$34<=($F$37-$F$35)*(1+0.5*L24),TRUE,FALSE)) -> Not applied, | M27: =IF(M19="YES","Not applied,",IF($F$36-$F$34<=($F$37-$F$35)*(1+0.5*M24),TRUE,FALSE)) -> Not applied,
F28: =IF(L19="YES"," nes susidarė viena iš FDĮ numatytų netaikymo aplinkybių",CONCATENATE(ROUND(($F$36-$F$34)/($F$37-$F$35),3),IF(L25," ≤ "," > "), ROUND(1+0.5*L24,3))) -> nes susidarė viena iš FDĮ numatytų netaikymo aplinkybių | G28: =IF(M19="YES"," nes susidarė viena iš FDĮ numatytų netaikymo aplinkybių",CONCATENATE(ROUND(($G$36-$F$34)/($G$37-$F$35),3),IF(M25," ≤ "," > "), ROUND(1+0.5*M24,3))) -> nes susidarė viena iš FDĮ numatytų netaikymo aplinkybių | L28: =IF(L19="YES"," since one of FDL escape clauses emerged",CONCATENATE(ROUND(($F$36-$F$34)/($F$37-$F$35),3),IF(L25," ≤ "," > "), ROUND(1+0.5*L24,3))) -> since one of FDL escape clauses emerged | M28: =IF(M19="YES"," since one of FDL escape clauses emerged",CONCATENATE(ROUND(($G$36-$F$34)/($G$37-$F$35),3),IF(M25," ≤ "," > "), ROUND(1+0.5*M24,3))) -> since one of FDL escape clauses emerged
C29: * nelygybės ženklas yra griežtas, jei skirtumas tarp lyginamų pusių po apvalinimo sudaro bent 0,1, kitaip ženklas interpretuojamas kaip = ** einamaisiais metais keičiamas VS balansas | I29: * inequality sign is strict, if a difference between both compared sides after rounding is at least 0,1, else the sign is interpreted as = ** the adjusted aggregate balances of the GG budgets
C30: Šaltiniai: KĮ 3 straipsnis 3 dalis, taisyklės pažymėtos * FDĮ 2-3 straipsniai | I30: Source: CL Article 3(3), rules denoted by * FDL Articles 2 and 3
E31: t = | F31: =FirstYear+8 -> 2020 | K31: t = | L31: =F31 -> 2020
E32: AV3(t) = | F32: ='3. GGbudget'!I14 -> 16338 | G32: ='3. GGbudget'!M14 -> 16995.43193 | K32: AG3(t) = | L32: 16338 | M32: =G32 -> 16995.43193
E33: AV3(t–1) = | F33: ='3. GGbudget'!H14 -> 15081 | G33: ='3. GGbudget'!L14 -> 15538.19285 | K33: AG3(t–1) = | L33: 15081 | M33: =G33 -> 15538.19285
E34: ES(t) = | F34: 2242.7 | K34: EU(t) = | L34: 2242.7
E35: ES(t–1) = | F35: 2101.2 | K35: EU(t–1) = | L35: 2101.2
E36: VI(t) = | F36: ='3. GGbudget'!I11 -> 18545.8 | G36: ='3. GGbudget'!M11 -> 18285.55586 | K36: TE(t) = | L36: 18545.8 | M36: =G36 -> 18285.55586
E37: VI(t–1) = | F37: ='3. GGbudget'!H11 -> 17108.5 | G37: ='3. GGbudget'!L11 -> 16731.22109 | K37: TE(t–1) = | L37: 17108.5 | M37: =G37 -> 16731.22109
E38: B(t–1)–B(t–2) = | F38: =+'3. GGbudget'!F7-'2. Macro'!M37 -> -0.5439832096 | G38: =+'3. GGbudget'!J7-'2. Macro'!M36 -> -0.5871723339 | K38: B(t–1)–B(t–2) = | L38: -0.5439832096 | M38: =G38 -> -0.5871723339
E39: BP(t–1)–BP(t–2) = | F39: =+('2. Macro'!N37-'2. Macro'!M37)-('2. Macro'!M37-'2. Macro'!L37) -> -0.6891673612 | G39: =+('2. Macro'!N36-'2. Macro'!M36)-('2. Macro'!M36-'2. Macro'!L36) -> -0.7311110545 | K39: BP(t–1)–BP(t–2) = | L39: -0.6891673612 | M39: =G39 -> -0.7311110545
C40: 2019 m. pavasario ERS | E40: PY1(t)/PY1(t–1) = | F40: 1.022434586 | I40: Spring 2019 EDS | K40: PY1(t)/PY1(t–1) = | L40: 1.022434586
C41: 2019 m. rudens ERS | E41: PY2(t)/PY2(t–1) = | F41: 1.027372553 | I41: Autumn 2019 EDS | K41: PY2(t)/PY2(t–1) = | L41: 1.027372553
C42: 2018 m. rudens EK projekcijos | E42: PY3(t)/PY3(t–1) = | F42: 1.036 | I42: Autumn 2018 EC projections | K42: PY3(t)/PY3(t–1) = | L42: 1.036
C43: 2019 m. pavasario EK projekcijos | E43: PY4(t)/PY4(t–1) = | F43: 1.027 | I43: Spring 2019 EC projections | K43: PY4(t)/PY4(t–1) = | L43: 1.027
C44: 2018K3-2019K2 | E44: ΔYN(t–1) = | F44: 7.353479159 | G44: 7.297119832 | I44: =+C44 -> 2018K3-2019K2 | K44: ΔYN(t–1) = | L44: =F44 -> 7.353479159 | M44: =G44 -> 7.297119832
E45: AP(t) = | F45: ='2. Macro'!O20 -> 2.200185464 | G45: ='2. Macro'!O19 -> 2.727308156 | K45: OG(t) = | L45: 2.200185464 | M45: =G45 -> 2.727308156
E46: ΔSVKI(t) = | F46: ='2. Macro'!O31 -> 2.3 | K46: ΔHICP(t) = | L46: 2.3
E47: AV3(t)–ES(t)= | F47: =+F32-F34 -> 14095.3 | G47: =+G32-F34 -> 14752.73193 | K47: AG3(t)–EU(t)= | L47: =+F47 -> 14095.3 | M47: 14752.73193
E48: AV3(t–1)–ES(t–1)= | F48: =+F33-F35 -> 12979.8 | G48: =+G33-F35 -> 13436.99285 | K48: AG3(t–1)–EU(t–1)= | L48: 12979.8 | M48: 13436.99285
E49: (AV3(t)-ES(t))/(AV3(t-1)-ES(t-1))= | F49: =+(F47/F48-1)*100 -> 8.594123176 | G49: =+(G47/G48-1)*100 -> 9.791916207 | K49: (AG3(t)-EU(t))/(AG3(t-1)-EU(t-1))= | L49: 8.594123176 | M49: 9.791916207
E50: Ynp10t | F50: =(POWER('2. Macro'!Q16/'2. Macro'!G16,0.1)*POWER(PRODUCT(F40:F43),0.25)-1)*100 -> 5.522594458 | G50: =(POWER('2. Macro'!Q15/'2. Macro'!G15,0.1)*POWER(PRODUCT(F40:F43),0.25)-1)*100 -> 5.533858311 | K50: Ynp10t | L50: =+F50 -> 5.522594458 | M50: =+G50 -> 5.533858311
E51: Šaltiniai: | K51: Sources:
E52: Finansų ministerija | F52: FM | K52: Ministry of Finance | L52: MoF
E53: Fiskalinė institucija | F53: IFI | K53: Independent Fiscal Institution | L53: IFI
E54: Europos Komisija | F54: EK | K54: European Commission | L54: EC
D55: A1 | E55: E1 | F55: =(L6)*1 -> 0 | G55: =(M6)*1 -> 0 | H55: =IF(F55=1,$D55,"") ->  | J55: =IF(F55=1,$E55,"") -> 
D56: A2 | E56: E2 | F56: =(L8)*1 -> 0 | G56: =(M8)*1 -> 0
D57: A3 | E57: E3 | F57: =(L12)*1 -> 1 | G57: =(M12)*1 -> 1 | H57: A3 | I57: A3 | J57: E3 | K57: E3
D58: A4 | E58: E4 | F58: =(L14) -> Not applied | G58: =(M14) -> Not applied
D59: A5 | E59: E5 | F59: =(L15)*1 -> 0 | G59: =(M15)*1 -> 0
F60: =SUM(F55:F59) -> 1 | G60: =SUM(G55:G59) -> 1

Sheet 7. GGbudgets
B1: ↖ atgal į turinį | G1: ↖ back to content
A2: =Kalba -> LT
B3: 7 lentelė. VS priskiriamų biudžetų taisyklės | G3: Table 7. Rules for the budgets attributable to GG sector
B4: Nr. | C4: Taisyklė | D4: Formulė | E4: Išvada | G4: No. | H4: Rule | I4: Formula | J4: Conclusion
C5: Institucija, kurios projekcijų pagrindu atliekama analizė | E5: FM | F5: IFI | H5: Institution, projections of which are used for the analysis | J5: MoF | K5: IFI
B6: T31 | C6: Nuo 2018 m. sausio 1 d. kiekvienas j-asis vietos valdžios sektoriui priskiriamas biudžetas, kurio asignavimai viršija 0,3 procentą praėjusių metų BVP to meto kainomis, turi būti planuojamas, tvirtinamas, keičiamas ir vykdomas taip, kad, sprendžiant pagal to biudžeto struktūrinį balanso rodiklį, apskaičiuotą kaupiamuoju principu, jis būtų perteklinis arba subalansuotas | D6: t > 2018 | E6: =IF(J6,"Tiesa","Netiesa") -> Tiesa | G6: R31 | H6: From 1 January 2018 each j-th budget attributable to local government sector, planned appropriations of which exceeds 0.3 % of GDP in the preceding year at current prices, and NHIF budget must be planned, approved, amended and implemented to be in surplus or balanced when judged by its structural balance indicator calculated on accrual basis | I6: t > 2018 | J6: =IF((J24-1)>2018,TRUE,FALSE) -> TRUE
D7: SBj(t) ≥ 0, ꓯj | E7: Šiuo metu negalima patikrinti, nes nėra duomenų apie savivaldybių, kurių asignavimai viršija 0,3 proc. BVP, planuojamus struktūrinius balanso rodiklius. Vertinama ex-ante 2020 m. I pusmetį. | F7: Šiuo metu negalima patikrinti, nes nėra duomenų apie savivaldybių, kurių asignavimai viršija 0,3 proc. BVP, planuojamus struktūrinius balanso rodiklius. Vertinama ex-ante 2020 m. I pusmetį. | I7: SBj(t) ≥ 0, ꓯj | J7: Assessed ex-ante in the first half of 2020 | K7: Assessed ex-ante in the first half of 2020
C8: Taisyklė planuojamiems vietos valdžios sektoriaus (j) asignavimams, kurie viršija 0,3 proc. BVP | E8: Netikrinama | F8: Netikrinama | H8: Rule for planned local governments (j) appropriations of which does exceed 0.3 % of GDP | J8: Not verified | K8: Not verified
B9: T32 | C9: Nuo 2018 m. sausio 1 d. PSDF biudžetas turi būti planuojamas, tvirtinamas, keičiamas ir vykdomas taip, kad, sprendžiant pagal to biudžeto struktūrinį balanso rodiklį, apskaičiuotą kaupiamuoju principu, jis būtų perteklinis arba subalansuotas | D9: t > 2018 | E9: =IF(J9,"Tiesa","Netiesa") -> Tiesa | G9: R32 | H9: From 1 January 2019 NHIF budget must be planned, approved, amended and implemented to be in surplus or balanced when judged by its structural balance indicator calculated on accrual basis | I9: t > 2018 | J9: =IF(E24>2018,TRUE,FALSE) -> TRUE
D10: SBPSDF(t) ≥ 0 | E10: =IF(J10,"Tiesa","Netiesa") -> Tiesa | F10: =IF(J10,"Tiesa","Netiesa") -> Tiesa | I10: SBNHIF ≥ 0 | J10: =IF(J28>=0,TRUE,FALSE) -> TRUE | K10: =IF(K28>=0,TRUE,FALSE) -> TRUE
E11: =CONCATENATE(TEXT(ROUND(J28,1),"0,0;–0,0"),IF(J28>= 0," ≥ "," < "),FIXED(0,1)) -> 0,3 ≥ 0,0 | F11: =CONCATENATE(TEXT(ROUND(K28,1),"0,0;–0,0"),IF(K28>=0," ≥ "," < "),FIXED(0,1)) -> 0,3 ≥ 0,0 | J11: =CONCATENATE(TEXT(ROUND(J28,1),"0.0;–0.0"),IF(J28>=0," ≥ "," < "),FIXED(0,1)) -> 00 ≥ 0,0 | K11: =CONCATENATE(TEXT(ROUND(K28,1),"0.0;–0.0"),IF(K28>=0,"≥ "," <"),FIXED(0,1)) -> 00≥ 0,0
C12: Taisyklė planuojamam PSDF struktūriniam biudžetui | E12: =IF(J10,"Galioja","Negalioja") -> Galioja | F12: =IF(K10,"Galioja","Negalioja") -> Galioja | H12: Rule for NHIF structural budget | J12: =IF(OR(J10:J11),"Valid","Invalid") -> Valid | K12: =IF(OR(K10:K11),"Valid","Invalid") -> Valid
B13: T4 | C13: Nuo 2016 m. sausio 1 d. Lietuvos Respublikos atitinkamų metų VSDF biudžetas planuojamas, tvirtinamas, keičiamas ir vykdomas taip, kad jo struktūrinis deficitas, apskaičiuotas kaupiamuoju principu, galėtų didėti t metais, kuriems pagal Vyriausybės arba jos įgaliotos institucijos viešai paskelbtą ekonominės raidos scenarijų, dėl kurio tvirtinimo kontrolės institucija paskelbė savo išvadą, numatomas neigiamas produkcijos atotrūkis nuo potencialo | D13: t > 2016 | E13: =IF(J13,"Tiesa","Netiesa") -> Tiesa | G13: R3 | H13: From 1 January 2016 budget of the SSIF of the Republic of Lithuania for a year t shall be planned, approved, amended and implemented in such a way that its structural deficit calculated on accrual basis could increase only in the year when a negative output gap is projected according to the economic development scenario which is made public by the Government of the Republic of Lithuania or its authorised institutions and in regard of which the monitoring authority published its conclusion | I13: t > 2016 | J13: =IF(E24>2016,TRUE,FALSE) -> TRUE
D14: AP(t) < 0 | E14: =IF(J14,"Tiesa","Netiesa") -> Netiesa | F14: =IF(K14,"Tiesa","Netiesa") -> Netiesa | I14: OG(t) < 0 | J14: =IF(J25+eps<0,TRUE,FALSE) -> FALSE | K14: =IF(K25+eps<0,TRUE,FALSE) -> FALSE
E15: =CONCATENATE(TEXT(ROUND(J25,1),"0,0;–0,0"),IF(J25<0," < "," ≥ "),FIXED(0,1)) -> 2,2 ≥ 0,0 | F15: =CONCATENATE(TEXT(ROUND(K25,1),"0,0;–0,0"),IF(K25<0," < "," ≥ "),FIXED(0,1)) -> 2,7 ≥ 0,0 | J15: =CONCATENATE(TEXT(ROUND(J25,1),"0.0;–0.0"),IF(J25<0," < "," ≥ "),FIXED(0,1)) -> 02 ≥ 0,0 | K15: =CONCATENATE(TEXT(ROUND(K25,1),"0.0;–0.0"),IF(K25<0," < "," ≥ "),FIXED(0,1)) -> 03 ≥ 0,0
D16: AP(t) ≥ 0 ir SBVSDF(t) ≥ SBVSDF(t–1) arba SBVSDF(t) ≥ 0 | E16: =IF(J16,"Tiesa","Netiesa") -> Tiesa | F16: =IF(K16,"Tiesa","Netiesa") -> Tiesa | I16: OG(t) ≥ 0 and SBSSIF(t) ≥ SBSSIF(t–1) | J16: =IF((J25>=0)*(J26>=0),TRUE,FALSE) -> TRUE | K16: =IF((K25>=0)*(K26+eps>=0),TRUE,FALSE) -> TRUE
E17: =CONCATENATE(TEXT(ROUND(E25,1),"0,0;–0,0"),IF(J25<0, " < "," ≥ "),FIXED(0,1), " ir ", TEXT(ROUND(E26,1),"0,0;–0,0"),IF(E26>=0," ≥ "," < "), TEXT(ROUND(0,1),"0,0;–0,0")) -> 2,2 ≥ 0,0 ir 0,5 ≥ 0,0 | F17: =CONCATENATE(TEXT(ROUND(F25,1),"0,0;–0,0"),IF(K25<0, " < ", " ≥ "),FIXED(0,1), " ir ", TEXT(ROUND(F26,1),"0,0;–0,0"),IF(F26>=0," ≥ "," < "), TEXT(ROUND(0,1),"0,0;–0,0")) -> 2,7 ≥ 0,0 ir 0,3 ≥ 0,0 | J17: =CONCATENATE(TEXT(ROUND(J25,1),"0.0;–0.0"),IF(J25 <0, " < "," ≥ "),FIXED(0,1), " and ", TEXT(ROUND(J26,1),"0.0;–0.0"),IF(J26>=0," ≥ "," < "), TEXT(ROUND(0,1),"0.0;–0.0")) -> 02 ≥ 0,0 and 01 ≥ 00 | K17: =CONCATENATE(TEXT(ROUND(K25,1),"0.0;–0.0"),IF(K25 <0, " < "," ≥ "),FIXED(0,1), " and ", TEXT(ROUND(K26,1),"0.0;–0.0"),IF(K26+eps>=0," ≥ "," < "), TEXT(ROUND(0,1),"0.0;–0.0")) -> 03 ≥ 0,0 and 00 ≥ 00
C18: Taisyklė planuojamam VSDF struktūriniam biudžetui | E18: =IF(OR(J14,J16),"Galioja","Negalioja") -> Galioja | F18: =IF(OR(K14,K16),"Galioja","Negalioja") -> Galioja | H18: Rule for SSIF structural budget | J18: =IF(OR(J14:J16),"Valid","Invalid") -> Valid | K18: =IF(OR(K14:K16),"Valid","Invalid") -> Valid
B19: T5 | C19: Nuo 2016 m. sausio 1 d. kiekvienas j-asis vietos valdžios sektoriui priskiriamas biudžetas, kurio asignavimai neviršija 0,3 procento praėjusių metų BVP to meto kainomis, turi būti planuojamas, tvirtinamas, keičiamas ir vykdomas taip, kad to biudžeto asignavimai neviršytų jo pajamų, išskyrus metus, kuriais pagal Vyriausybės arba jos įgaliotos institucijos viešai paskelbtą ekonominės raidos scenarijų, dėl kurio tvirtinimo kontrolės institucija paskelbė savo išvadą, numatomas neigiamas produkcijos atotrūkis nuo potencialo. Pastaruoju atveju asignavimai negali viršyti pajamų daugiau kaip 1,5 procento | D19: t > 2016 | E19: =IF(J19,"Tiesa","Netiesa") -> Tiesa | G19: R4 | H19: From 1 January 2016 each j-th budget attributable to local government sector, planned appropriations of which does not exceed 0.3 % of GDP in the preceding year at current prices, shall be planned, approved, amended and implemented in such a way that the appropriations of the budget would not exceed its revenue, with the exception of the year when a negative output gap is projected according to the economic development scenario which is made public by the Government or its authorised institution and in regard to which the monitoring authority published its conclusion. In the latter case, the appropriations may not exceed revenue by more than 1.5 % | I19: t>2016 | J19: =IF(E24>2016,TRUE,FALSE) -> TRUE
D20: AP(t) ≥ 0 ir VIj(t)/VPj(t) ≤ 1 | E20: Šiuo metu negalima patikrinti, nes nėra duomenų apie savivaldybių, kurių asignavimai neviršija 0,3 proc. BVP, planuojamas pajamas ir asignavimus. Vertinama ex-ante 2020 m. I pusmetį. | F20: Šiuo metu negalima patikrinti, nes nėra duomenų apie savivaldybių, kurių asignavimai neviršija 0,3 proc. BVP, planuojamas pajamas ir asignavimus. Vertinama ex-ante 2020 m. I pusmetį. | I20: OG(t) ≥ 0 and TEj(t)/TRj(t) ≤ 1 | J20: Assessed ex-ante in the first half of 2020 | K20: Assessed ex-ante in the first half of 2020
D21: AP(t) < 0 ir VIj(t)/VPj(t) ≤ 1,015 | I21: OG(t) < 0 and TEj(t)/TRj(t) ≤ 1,015
C22: Taisyklė planuojamiems vietos valdžios sektoriaus (j) asignavimams, kurie neviršija 0,3 proc. BVP | E22: Netikrinama | F22: Netikrinama | H22: Rule for planned local governments (j) appropriations of which does not exceed 0.3 % of GDP | J22: Not verified | K22: Not verified
C23: Šaltinis: KĮ 4 straipsnis | H23: Source: CL Article 4
D24: t = | E24: ='2. Macro'!G5+8 -> 2020 | I24: t = | J24: =E24 -> 2020
D25: AP(t) = | E25: ='2. Macro'!O20 -> 2.200185464 | F25: ='2. Macro'!O19 -> 2.727308156 | I25: OG(t) = | J25: =E25 -> 2.200185464 | K25: =F25 -> 2.727308156
D26: SBVSDF(t) = | E26: ='3. GGbudget'!G20 -> 0.4615001936 | F26: ='3. GGbudget'!K20 -> 0.2973459329 | I26: SBSSIF(t) = | J26: =E26 -> 0.4615001936 | K26: =F26 -> 0.2973459329
D27: SBVSDF(t–1) = | E27: ='3. GGbudget'!F20 -> 0.4552982566 | F27: ='3. GGbudget'!J20 -> 0.366364348 | I27: SBSSIF(t–1) = | J27: =E27 -> 0.4552982566 | K27: =F27 -> 0.366364348
D28: SBPSDF(t) = | E28: =+'3. GGbudget'!G21 -> 0.2950061451 | F28: =+'3. GGbudget'!K21 -> 0.2697863357 | I28: SBNHIF(t) = | J28: =E28 -> 0.2950061451 | K28: =F28 -> 0.2697863357
D29: Šaltiniai: | I29: Sources:
D30: Finansų ministerija | E30: FM | I30: Ministry of Finance | J30: MoF
D31: Fiskalinė institucija | E31: IFI | I31: Independent Fiscal Institution | J31: IFI
